Workbook

Sheet Start
B10: Bereit für Ihr Zuhause
B19: Projekt
B20: Name
B21: Straße und Hausnummer
B22: Postleitzahl / Ort
B25: Auf den nächsten Seiten stellen wir Ihnen ein paar Fragen um das optimale evon Smart Home für Sie individuell zusammen zu stellen
C28: los geht’s

Sheet Stammdaten (hidden)
A3: Geschosse | C3: Räume | D3: Verteiler | G3: Produkt | H3: TE | I3: Kanäle
A4: EG | C4: Bad | D4: Hauptverteiler | G4: HC-iX800SD | H4: 7.8
A5: UG | C5: Bad - Kinder | D5: Subverteiler 1 | G5: HC-iX840SD | H5: 7.8
A6: OG | C6: Büro | D6: Subverteiler 2 | G6: HC-B1144 | H6: 2.6 | I6: 2
A7: Außen | C7: Carport | D7: Subverteiler 3 | G7: HC-B1244 | H7: 3.9 | I7: 2
A8: Außen EG | C8: Einfahrt | D8: Subverteiler 4 | G8: HC-B1344 | H8: 2.6 | I8: 2
A9: Außen UG | C9: Eingang | G9: HC-L1144 | H9: 2.6 | I9: 4
A10: Außen OG | C10: Essen | G10: HC-L1244 | H10: 3.9 | I10: 4
C11: Gang | G11: HC-L1424 | H11: 3.9 | I11: 2
C12: Grarage | G12: HC-L1544 | H12: 2.6 | I12: 4
C13: Haustechnik | G13: HC-L1644 | H13: 3.9 | I13: 1
C14: HWR | G14: HC-L1842 | H14: 3.9 | I14: 20
C15: Keller | G15: HC-C1144 | H15: 2.6 | I15: 4
C16: Kinderzimmer | G16: HC-C1244 | H16: 2.6 | I16: 4
C17: Kinderzimmer 2 | G17: HC-C110X
C18: Küche | G18: HC-C1109
C19: Lager | G19: HC-C1010
C20: Schlafzimmer | G20: HC-D1180 | H20: 2.6 | I20: 8
C21: Schleuse | G21: HC-D1208 | H21: 2.6 | I21: 8
C22: Schrankraum | G22: HC-D1344 | H22: 2.6
C23: Speis | G23: HC-A1144 | H23: 2.6
C24: Terrasse | G24: HC-A1240 | H24: 2.6 | I24: 4
C25: Vorraum | G25: HC-A1380 | H25: 2.6
C26: WC | G26: HC-TS410 | H26: 3.9
C27: Wohnen | G27: HC-TA200 | H27: 2.6
G28: HC-S2200 | H28: 1.3
G29: HC-S2300 | H29: 1.3
G30: HC-S2400
G31: HC-TE100 | H31: 1.3
G32: HC-S100W | H32: 5.2
G33: HC-S1100 | H33: 1.3
G34: HC-S1200 | H34: 1.3
G35: HC-WSLRW
G36: HC-SiPB10
G37: HC-CAM12
G38: HC-BCAMZ01
G39: HC-DCAM20
G40: HC-DCAMZ01
G41: HC-ULUX
G42: HC-ULUXEXT1
G43: HC-ULUXEXT2
G44: HC-ULUXEXT3
G45: HC-ULUXEXT4
G46: HC-KEYAP
G47: HC-KEYAPR
G48: HC-KEYUPE
G49: HC-KEYUPER
G50: HC-KEYUPI
G51: HC-KEYUPIR
G52: HC-KEYIN
G53: HC-KEYINR
G54: HC-SPOE42
G55: HC-SPOE81
G56: HC-IPOE1
G57: HC-BRC15
G58: HC-DIM400 | H58: 1
G59: HC-KEYZ01
G60: HC-KEYZ02
G61: HC-KEYZ03
G62: HC-KEYZ04
G63: HC-KEYZ05
G64: HC-KEYZ06
G65: HC-KEYZ07
G66: HC-KEYZ08
G67: HC-KEYZ09
G68: HC-KEYZ10
G69: HC-SIPZ01
G70: HC-SIPZ02
G71: HC-SIPZ03
G72: HC-SIPZ04
G73: HC-SIPZ05
G74: HC-SIPZ06
G75: HC-WIFIAP
G76: HC-S2100
G77: HC-CABP
G78: HC-CABM

Sheet Mein Zuhause
B2: Ihr Zuhause
B4: Zuerst bitten wir Sie um ein paar Informationen zu Ihrem Zuhause, damit wir die weitere Planung erleichtern können.
C6: nächster Schritt
B8: Geschosse | C8: Räume | D8: Verteiler
D9: Hauptverteiler
D10: Hauptverteiler
D11: Hauptverteiler
D12: Hauptverteiler
D13: Hauptverteiler
D14: Hauptverteiler
D15: Hauptverteiler
D16: Hauptverteiler
D17: Hauptverteiler
D18: Hauptverteiler
D19: Hauptverteiler
D20: Hauptverteiler
D21: Hauptverteiler
D22: Hauptverteiler
D23: Hauptverteiler
D24: Hauptverteiler
D25: Hauptverteiler
D26: Hauptverteiler
D27: Hauptverteiler
D28: Hauptverteiler
D29: Hauptverteiler
D30: Hauptverteiler
D31: Hauptverteiler
D32: Hauptverteiler
D33: Hauptverteiler
D34: Hauptverteiler
D35: Hauptverteiler
D36: Hauptverteiler
D37: Hauptverteiler
D38: Hauptverteiler
D39: Hauptverteiler
D40: Hauptverteiler
D41: Hauptverteiler
D42: Hauptverteiler
D43: Hauptverteiler
D44: Hauptverteiler
D45: Hauptverteiler

Sheet Beleuchtung
B2: Beleuchtung
B4: Licht ist wesentlich für Ihr Komfortempfinden. Und evon Smart Home sorgt dafür, dass Licht, unabhängig ob Tag oder Nacht, einfach für Sie im richtigen Moment da ist.
E6: nächster Schritt
B8: Lichtmodule mit integriertem Leistungsteil | E8: Ja
B9: Durch einen im Lichtmodul integrierten Leistungsteil sind keine zusätzlichen Relais für die Ansteuerung der Lampen nötig. Das spart Zeit, Platz und Geld.
C11: Lichtkreise | D11: Stimmungsbeleuchtung | J11: Bewegungsmelder
B12: Raum | C12: Normal | D12: Dimmen | E12: Art der Dimmung | F12: LED mit Farbsteuerung | G12: Dimmen 0-10 | H12: Dimmen Glühlampe | I12: Dimmen DALI | J12: 24V | K12: 230V
B13: SUMME | C13: =SUM(C14:C554) -> 0 | D13: =SUM(D14:D554) -> 0 | F13: =SUM(F14:F554) -> 0 | G13: =SUM(G14:G46) -> 0 | H13: =SUM(H14:H46) -> 0 | I13: =SUM(I14:I46) -> 0 | J13: =SUM(J14:J554) -> 0 | K13: =SUM(K14:K554) -> 0
B14: =IF('Mein Zuhause'!B9<>"",'Mein Zuhause'!B9&" - "&'Mein Zuhause'!C9,"") ->  | G14: =IF($E14="0-10V",$D14,0) -> 0 | H14: =IF($E14="Glühlampe",$D14,0) -> 0 | I14: =IF($E14="DALI",$D14,0) -> 0
B15: =IF('Mein Zuhause'!B10<>"",'Mein Zuhause'!B10&" - "&'Mein Zuhause'!C10,"") ->  | G15: =IF($E15="0-10V",$D15,0) -> 0 | H15: =IF($E15="Glühlampe",$D15,0) -> 0 | I15: =IF(E15="DALI",D15,0) -> 0
B16: =IF('Mein Zuhause'!B11<>"",'Mein Zuhause'!B11&" - "&'Mein Zuhause'!C11,"") ->  | G16: 0 | H16: 0 | I16: 0
B17: =IF('Mein Zuhause'!B12<>"",'Mein Zuhause'!B12&" - "&'Mein Zuhause'!C12,"") ->  | G17: 0 | H17: 0 | I17: 0
B18: =IF('Mein Zuhause'!B13<>"",'Mein Zuhause'!B13&" - "&'Mein Zuhause'!C13,"") ->  | G18: 0 | H18: 0 | I18: 0
B19: =IF('Mein Zuhause'!B14<>"",'Mein Zuhause'!B14&" - "&'Mein Zuhause'!C14,"") ->  | G19: 0 | H19: 0 | I19: 0
B20: =IF('Mein Zuhause'!B15<>"",'Mein Zuhause'!B15&" - "&'Mein Zuhause'!C15,"") ->  | G20: 0 | H20: 0 | I20: 0
B21: =IF('Mein Zuhause'!B16<>"",'Mein Zuhause'!B16&" - "&'Mein Zuhause'!C16,"") ->  | G21: 0 | H21: 0 | I21: 0
B22: =IF('Mein Zuhause'!B17<>"",'Mein Zuhause'!B17&" - "&'Mein Zuhause'!C17,"") ->  | G22: 0 | H22: 0 | I22: 0
B23: =IF('Mein Zuhause'!B18<>"",'Mein Zuhause'!B18&" - "&'Mein Zuhause'!C18,"") ->  | G23: 0 | H23: 0 | I23: 0
B24: =IF('Mein Zuhause'!B19<>"",'Mein Zuhause'!B19&" - "&'Mein Zuhause'!C19,"") ->  | G24: 0 | H24: 0 | I24: 0
B25: =IF('Mein Zuhause'!B20<>"",'Mein Zuhause'!B20&" - "&'Mein Zuhause'!C20,"") ->  | G25: 0 | H25: 0 | I25: 0
B26: =IF('Mein Zuhause'!B21<>"",'Mein Zuhause'!B21&" - "&'Mein Zuhause'!C21,"") ->  | G26: 0 | H26: 0 | I26: 0
B27: =IF('Mein Zuhause'!B22<>"",'Mein Zuhause'!B22&" - "&'Mein Zuhause'!C22,"") ->  | G27: 0 | H27: 0 | I27: 0
B28: =IF('Mein Zuhause'!B23<>"",'Mein Zuhause'!B23&" - "&'Mein Zuhause'!C23,"") ->  | G28: 0 | H28: 0 | I28: 0
B29: =IF('Mein Zuhause'!B24<>"",'Mein Zuhause'!B24&" - "&'Mein Zuhause'!C24,"") ->  | G29: 0 | H29: 0 | I29: 0
B30: =IF('Mein Zuhause'!B25<>"",'Mein Zuhause'!B25&" - "&'Mein Zuhause'!C25,"") ->  | G30: 0 | H30: 0 | I30: 0
B31: =IF('Mein Zuhause'!B26<>"",'Mein Zuhause'!B26&" - "&'Mein Zuhause'!C26,"") ->  | G31: 0 | H31: 0 | I31: 0
B32: =IF('Mein Zuhause'!B27<>"",'Mein Zuhause'!B27&" - "&'Mein Zuhause'!C27,"") ->  | G32: 0 | H32: 0 | I32: 0
B33: =IF('Mein Zuhause'!B28<>"",'Mein Zuhause'!B28&" - "&'Mein Zuhause'!C28,"") ->  | G33: 0 | H33: 0 | I33: 0
B34: =IF('Mein Zuhause'!B29<>"",'Mein Zuhause'!B29&" - "&'Mein Zuhause'!C29,"") ->  | G34: 0 | H34: 0 | I34: 0
B35: =IF('Mein Zuhause'!B30<>"",'Mein Zuhause'!B30&" - "&'Mein Zuhause'!C30,"") ->  | G35: 0 | H35: 0 | I35: 0
B36: =IF('Mein Zuhause'!B31<>"",'Mein Zuhause'!B31&" - "&'Mein Zuhause'!C31,"") ->  | G36: 0 | H36: 0 | I36: 0
B37: =IF('Mein Zuhause'!B32<>"",'Mein Zuhause'!B32&" - "&'Mein Zuhause'!C32,"") ->  | G37: 0 | H37: 0 | I37: 0
B38: =IF('Mein Zuhause'!B33<>"",'Mein Zuhause'!B33&" - "&'Mein Zuhause'!C33,"") ->  | G38: 0 | H38: 0 | I38: 0
B39: =IF('Mein Zuhause'!B34<>"",'Mein Zuhause'!B34&" - "&'Mein Zuhause'!C34,"") ->  | G39: 0 | H39: 0 | I39: 0
B40: =IF('Mein Zuhause'!B35<>"",'Mein Zuhause'!B35&" - "&'Mein Zuhause'!C35,"") ->  | G40: 0 | H40: 0 | I40: 0
B41: =IF('Mein Zuhause'!B36<>"",'Mein Zuhause'!B36&" - "&'Mein Zuhause'!C36,"") ->  | G41: 0 | H41: 0 | I41: 0
B42: =IF('Mein Zuhause'!B37<>"",'Mein Zuhause'!B37&" - "&'Mein Zuhause'!C37,"") ->  | G42: 0 | H42: 0 | I42: 0
B43: =IF('Mein Zuhause'!B38<>"",'Mein Zuhause'!B38&" - "&'Mein Zuhause'!C38,"") ->  | G43: 0 | H43: 0 | I43: 0
B44: =IF('Mein Zuhause'!B39<>"",'Mein Zuhause'!B39&" - "&'Mein Zuhause'!C39,"") ->  | G44: 0 | H44: 0 | I44: 0
B45: =IF('Mein Zuhause'!B40<>"",'Mein Zuhause'!B40&" - "&'Mein Zuhause'!C40,"") ->  | G45: 0 | H45: 0 | I45: 0
B46: =IF('Mein Zuhause'!B41<>"",'Mein Zuhause'!B41&" - "&'Mein Zuhause'!C41,"") ->  | G46: 0 | H46: 0 | I46: 0
B47: =IF('Mein Zuhause'!B42<>"",'Mein Zuhause'!B42&" - "&'Mein Zuhause'!C42,"") ->  | G47: 0 | H47: 0 | I47: =IF(E47="DALI",D47,0) -> 0
B48: =IF('Mein Zuhause'!B43<>"",'Mein Zuhause'!B43&" - "&'Mein Zuhause'!C43,"") ->  | G48: 0 | H48: 0 | I48: 0
B49: =IF('Mein Zuhause'!B44<>"",'Mein Zuhause'!B44&" - "&'Mein Zuhause'!C44,"") ->  | G49: 0 | H49: 0 | I49: 0
B50: =IF('Mein Zuhause'!B45<>"",'Mein Zuhause'!B45&" - "&'Mein Zuhause'!C45,"") ->  | G50: 0 | H50: 0 | I50: 0

Sheet Berechnung Beleuchtung (hidden)
A1: Verteileraufteilung | J1: MODULE
J3: =Stammdaten!G9 -> HC-L1144 | K3: =Stammdaten!G10 -> HC-L1244 | L3: =Stammdaten!G11 -> HC-L1424 | M3: =Stammdaten!G12 -> HC-L1544 | N3: =Stammdaten!G14 -> HC-L1842 | O3: =Stammdaten!G13 -> HC-L1644 | P3: =Stammdaten!G58 -> HC-DIM400
J4: =Stammdaten!H9 -> 2.6 | K4: =Stammdaten!H10 -> 3.9 | L4: =Stammdaten!H11 -> 3.9 | M4: =Stammdaten!H12 -> 2.6 | N4: =Stammdaten!H14 -> 3.9 | O4: =Stammdaten!H13 -> 3.9 | P4: =Stammdaten!H58 -> 1 | Q4: TE
C5: Funktion | J5: =Stammdaten!I9 -> 4 | K5: =Stammdaten!I10 -> 4 | L5: =Stammdaten!I11 -> 2 | M5: =Stammdaten!I12 -> 4 | N5: =Stammdaten!I14 -> 20 | O5: =Stammdaten!I13 -> 1 | P5: 1 | Q5: Anzahl Kanäle/Modul
A6: Zuordnung | B6: Verteiler | C6: Normal | D6: Dimmen 0-10 | E6: Dimmen Glühlampe | F6: Dimmen DALI | G6: LED mit Farbsteuerung | H6: 24V | I6: 230V | J6: Normal | K6: Normal mit 230 | L6: Dimmen 0-10 | M6: Dimmen Glühlampe | N6: Dimmen DALI | O6: LED mit Farbsteuerung | Q6: Teilungseinheiten
J7: =SUM(J8:J12) -> 0 | K7: =SUM(K8:K12) -> 0 | L7: =SUM(L8:L12) -> 0 | M7: 0 | N7: 0 | O7: 0 | R7: Summe Module
A8: ='Mein Zuhause'!$D9 -> Hauptverteiler | B8: =Stammdaten!$D4 -> Hauptverteiler | C8: =SUMIF($A$8:$A$44,$B8,Beleuchtung!C$14:C$50) -> 0 | D8: =SUMIF($A$8:$A$44,$B8,Beleuchtung!G$14:G$50) -> 0 | E8: =SUMIF($A$8:$A$44,$B8,Beleuchtung!H$14:H$50) -> 0 | F8: =SUMIF($A$8:$A$44,$B8,Beleuchtung!I$14:I$50) -> 0 | G8: =SUMIF($A$8:$A$44,$B8,Beleuchtung!F$14:F$50) -> 0 | H8: =SUMIF($A$8:$A$44,$B8,Beleuchtung!J$14:J$50) -> 0 | I8: =SUMIF($A$8:$A$44,$B8,Beleuchtung!K$14:K$50) -> 0 | J8: =IF(Beleuchtung!$E$8="Ja",0,ROUNDUP(C8/J$5,0)) -> 0 | K8: =IF(Beleuchtung!$E$8="Ja",ROUNDUP(C8/K$5,0),0) -> 0 | L8: =ROUNDUP(D8/L$5,0) -> 0 | M8: =ROUNDUP(E8/M$5,0) -> 0 | N8: =ROUNDUP(F8/N$5,0) -> 0 | O8: =ROUNDUP(G8/O$5,0) -> 0 | P8: =M8 -> 0 | Q8: =$J8*$J$4+K8*$K$4+L8*$L$4+M8*M$4+N8*$N$4+O8*$O$4+P8*$P$4 -> 0
A9: ='Mein Zuhause'!$D10 -> Hauptverteiler | B9: =Stammdaten!$D5 -> Subverteiler 1 | C9: =SUMIF($A$8:$A$44,$B9,Beleuchtung!C$14:C$50) -> 0 | D9: =SUMIF($A$8:$A$44,$B9,Beleuchtung!G$14:G$50) -> 0 | E9: =SUMIF($A$8:$A$44,$B9,Beleuchtung!H$14:H$50) -> 0 | F9: =SUMIF($A$8:$A$44,$B9,Beleuchtung!I$14:I$50) -> 0 | G9: =SUMIF($A$8:$A$44,$B9,Beleuchtung!F$14:F$50) -> 0 | H9: =SUMIF($A$8:$A$44,$B9,Beleuchtung!J$14:J$50) -> 0 | I9: =SUMIF($A$8:$A$44,$B9,Beleuchtung!K$14:K$50) -> 0 | J9: =IF(Beleuchtung!$E$8="Ja",0,ROUNDUP(C9/J$5,0)) -> 0 | K9: =IF(Beleuchtung!$E$8="Ja",ROUNDUP(C9/K$5,0),0) -> 0 | L9: =ROUNDUP(D9/L$5,0) -> 0 | M9: =ROUNDUP(E9/M$5,0) -> 0 | N9: =ROUNDUP(F9/N$5,0) -> 0 | O9: =ROUNDUP(G9/O$5,0) -> 0 | P9: =M9 -> 0 | Q9: =$J9*$J$4+K9*$K$4+L9*$L$4+M9*M$4+N9*$N$4+O9*$O$4+P9*$P$4 -> 0
A10: ='Mein Zuhause'!$D11 -> Hauptverteiler | B10: =Stammdaten!$D6 -> Subverteiler 2 | C10: =SUMIF($A$8:$A$44,$B10,Beleuchtung!C$14:C$50) -> 0 | D10: =SUMIF($A$8:$A$44,$B10,Beleuchtung!G$14:G$50) -> 0 | E10: =SUMIF($A$8:$A$44,$B10,Beleuchtung!H$14:H$50) -> 0 | F10: =SUMIF($A$8:$A$44,$B10,Beleuchtung!I$14:I$50) -> 0 | G10: =SUMIF($A$8:$A$44,$B10,Beleuchtung!F$14:F$50) -> 0 | H10: =SUMIF($A$8:$A$44,$B10,Beleuchtung!J$14:J$50) -> 0 | I10: =SUMIF($A$8:$A$44,$B10,Beleuchtung!K$14:K$50) -> 0 | J10: =IF(Beleuchtung!$E$8="Ja",0,ROUNDUP(C10/J$5,0)) -> 0 | K10: =IF(Beleuchtung!$E$8="Ja",ROUNDUP(C10/K$5,0),0) -> 0 | L10: 0 | M10: 0 | N10: 0 | O10: 0 | P10: 0 | Q10: 0
A11: ='Mein Zuhause'!$D12 -> Hauptverteiler | B11: =Stammdaten!$D7 -> Subverteiler 3 | C11: =SUMIF($A$8:$A$44,$B11,Beleuchtung!C$14:C$50) -> 0 | D11: =SUMIF($A$8:$A$44,$B11,Beleuchtung!G$14:G$50) -> 0 | E11: =SUMIF($A$8:$A$44,$B11,Beleuchtung!H$14:H$50) -> 0 | F11: =SUMIF($A$8:$A$44,$B11,Beleuchtung!I$14:I$50) -> 0 | G11: =SUMIF($A$8:$A$44,$B11,Beleuchtung!F$14:F$50) -> 0 | H11: =SUMIF($A$8:$A$44,$B11,Beleuchtung!J$14:J$50) -> 0 | I11: =SUMIF($A$8:$A$44,$B11,Beleuchtung!K$14:K$50) -> 0 | J11: =IF(Beleuchtung!$E$8="Ja",0,ROUNDUP(C11/J$5,0)) -> 0 | K11: =IF(Beleuchtung!$E$8="Ja",ROUNDUP(C11/K$5,0),0) -> 0 | L11: 0 | M11: 0 | N11: 0 | O11: 0 | P11: 0 | Q11: 0
A12: ='Mein Zuhause'!$D13 -> Hauptverteiler | B12: =Stammdaten!$D8 -> Subverteiler 4 | C12: =SUMIF($A$8:$A$44,$B12,Beleuchtung!C$14:C$50) -> 0 | D12: =SUMIF($A$8:$A$44,$B12,Beleuchtung!G$14:G$50) -> 0 | E12: =SUMIF($A$8:$A$44,$B12,Beleuchtung!H$14:H$50) -> 0 | F12: =SUMIF($A$8:$A$44,$B12,Beleuchtung!I$14:I$50) -> 0 | G12: =SUMIF($A$8:$A$44,$B12,Beleuchtung!F$14:F$50) -> 0 | H12: =SUMIF($A$8:$A$44,$B12,Beleuchtung!J$14:J$50) -> 0 | I12: =SUMIF($A$8:$A$44,$B12,Beleuchtung!K$14:K$50) -> 0 | J12: =IF(Beleuchtung!$E$8="Ja",0,ROUNDUP(C12/J$5,0)) -> 0 | K12: =IF(Beleuchtung!$E$8="Ja",ROUNDUP(C12/K$5,0),0) -> 0 | L12: 0 | M12: 0 | N12: 0 | O12: 0 | P12: 0 | Q12: 0
A13: ='Mein Zuhause'!$D14 -> Hauptverteiler
A14: ='Mein Zuhause'!$D15 -> Hauptverteiler
A15: ='Mein Zuhause'!$D16 -> Hauptverteiler
A16: ='Mein Zuhause'!$D17 -> Hauptverteiler
A17: ='Mein Zuhause'!$D18 -> Hauptverteiler
A18: ='Mein Zuhause'!$D19 -> Hauptverteiler
A19: ='Mein Zuhause'!$D20 -> Hauptverteiler
A20: ='Mein Zuhause'!$D21 -> Hauptverteiler
A21: ='Mein Zuhause'!$D22 -> Hauptverteiler
A22: ='Mein Zuhause'!$D23 -> Hauptverteiler
A23: ='Mein Zuhause'!$D24 -> Hauptverteiler
A24: ='Mein Zuhause'!$D25 -> Hauptverteiler
A25: ='Mein Zuhause'!$D26 -> Hauptverteiler
A26: ='Mein Zuhause'!$D27 -> Hauptverteiler
A27: ='Mein Zuhause'!$D28 -> Hauptverteiler
A28: ='Mein Zuhause'!$D29 -> Hauptverteiler
A29: ='Mein Zuhause'!$D30 -> Hauptverteiler
A30: ='Mein Zuhause'!$D31 -> Hauptverteiler
A31: ='Mein Zuhause'!$D32 -> Hauptverteiler
A32: ='Mein Zuhause'!$D33 -> Hauptverteiler
A33: ='Mein Zuhause'!$D34 -> Hauptverteiler
A34: ='Mein Zuhause'!$D35 -> Hauptverteiler
A35: ='Mein Zuhause'!$D36 -> Hauptverteiler
A36: ='Mein Zuhause'!$D37 -> Hauptverteiler
A37: ='Mein Zuhause'!$D38 -> Hauptverteiler
A38: ='Mein Zuhause'!$D39 -> Hauptverteiler
A39: ='Mein Zuhause'!$D40 -> Hauptverteiler
A40: ='Mein Zuhause'!$D41 -> Hauptverteiler
A41: ='Mein Zuhause'!$D42 -> Hauptverteiler
A42: ='Mein Zuhause'!$D43 -> Hauptverteiler
A43: ='Mein Zuhause'!$D44 -> Hauptverteiler
A44: ='Mein Zuhause'!$D45 -> Hauptverteiler

Sheet Beschatttung und Fenster
B2: Beschattung & Fenster
B4: Die Steuerung von Jalousien ist eine Kernaufgabe eines Smart Home Systems. Doch gerade Licht und Schatten kann Ihren Energieverbrauch über den Jahresverlauf relativ stark beeinflussen.
E6: nächster Schritt
B8: Zubehör
B9: Wetterstation | C9: =IF(SUM(C14:G35)>0,1,0) -> 0 | D9: Stk
C11: Raffstore | G11: Dachfenster
B12: Raum | C12: Normal | D12: Schlotterer Retrolux | E12: 24V Antrieb | F12: Rollo | G12: ROTO | H12: Velux | I12: Fensterkontakt
B13: SUMME | C13: =SUM(C14:C47) -> 0 | D13: 0 | E13: 0 | F13: 0 | G13: 0 | H13: 0 | I13: =SUM(I14:I46) -> 0
B14: =IF('Mein Zuhause'!B9<>"",'Mein Zuhause'!B9&" - "&'Mein Zuhause'!C9,"") -> 
B15: =IF('Mein Zuhause'!B10<>"",'Mein Zuhause'!B10&" - "&'Mein Zuhause'!C10,"") -> 
B16: =IF('Mein Zuhause'!B11<>"",'Mein Zuhause'!B11&" - "&'Mein Zuhause'!C11,"") -> 
B17: =IF('Mein Zuhause'!B12<>"",'Mein Zuhause'!B12&" - "&'Mein Zuhause'!C12,"") -> 
B18: =IF('Mein Zuhause'!B13<>"",'Mein Zuhause'!B13&" - "&'Mein Zuhause'!C13,"") -> 
B19: =IF('Mein Zuhause'!B14<>"",'Mein Zuhause'!B14&" - "&'Mein Zuhause'!C14,"") -> 
B20: =IF('Mein Zuhause'!B15<>"",'Mein Zuhause'!B15&" - "&'Mein Zuhause'!C15,"") -> 
B21: =IF('Mein Zuhause'!B16<>"",'Mein Zuhause'!B16&" - "&'Mein Zuhause'!C16,"") -> 
B22: =IF('Mein Zuhause'!B17<>"",'Mein Zuhause'!B17&" - "&'Mein Zuhause'!C17,"") -> 
B23: =IF('Mein Zuhause'!B18<>"",'Mein Zuhause'!B18&" - "&'Mein Zuhause'!C18,"") -> 
B24: =IF('Mein Zuhause'!B19<>"",'Mein Zuhause'!B19&" - "&'Mein Zuhause'!C19,"") -> 
B25: =IF('Mein Zuhause'!B20<>"",'Mein Zuhause'!B20&" - "&'Mein Zuhause'!C20,"") -> 
B26: =IF('Mein Zuhause'!B21<>"",'Mein Zuhause'!B21&" - "&'Mein Zuhause'!C21,"") -> 
B27: =IF('Mein Zuhause'!B22<>"",'Mein Zuhause'!B22&" - "&'Mein Zuhause'!C22,"") -> 
B28: =IF('Mein Zuhause'!B23<>"",'Mein Zuhause'!B23&" - "&'Mein Zuhause'!C23,"") -> 
B29: =IF('Mein Zuhause'!B24<>"",'Mein Zuhause'!B24&" - "&'Mein Zuhause'!C24,"") -> 
B30: =IF('Mein Zuhause'!B25<>"",'Mein Zuhause'!B25&" - "&'Mein Zuhause'!C25,"") -> 
B31: =IF('Mein Zuhause'!B26<>"",'Mein Zuhause'!B26&" - "&'Mein Zuhause'!C26,"") -> 
B32: =IF('Mein Zuhause'!B27<>"",'Mein Zuhause'!B27&" - "&'Mein Zuhause'!C27,"") -> 
B33: =IF('Mein Zuhause'!B28<>"",'Mein Zuhause'!B28&" - "&'Mein Zuhause'!C28,"") -> 
B34: =IF('Mein Zuhause'!B29<>"",'Mein Zuhause'!B29&" - "&'Mein Zuhause'!C29,"") -> 
B35: =IF('Mein Zuhause'!B30<>"",'Mein Zuhause'!B30&" - "&'Mein Zuhause'!C30,"") -> 
B36: =IF('Mein Zuhause'!B31<>"",'Mein Zuhause'!B31&" - "&'Mein Zuhause'!C31,"") -> 
B37: =IF('Mein Zuhause'!B32<>"",'Mein Zuhause'!B32&" - "&'Mein Zuhause'!C32,"") -> 
B38: =IF('Mein Zuhause'!B33<>"",'Mein Zuhause'!B33&" - "&'Mein Zuhause'!C33,"") -> 
B39: =IF('Mein Zuhause'!B34<>"",'Mein Zuhause'!B34&" - "&'Mein Zuhause'!C34,"") -> 
B40: =IF('Mein Zuhause'!B35<>"",'Mein Zuhause'!B35&" - "&'Mein Zuhause'!C35,"") -> 
B41: =IF('Mein Zuhause'!B36<>"",'Mein Zuhause'!B36&" - "&'Mein Zuhause'!C36,"") -> 
B42: =IF('Mein Zuhause'!B37<>"",'Mein Zuhause'!B37&" - "&'Mein Zuhause'!C37,"") -> 

Sheet Berechnung Beschattung (hidden)
A1: Verteileraufteilung | J1: MODULE | K1: Anz. Kanäle
J3: =Stammdaten!G6 -> HC-B1144 | K3: =Stammdaten!G8 -> HC-B1344 | L3: =Stammdaten!G$10 -> HC-L1244 | M3: =Stammdaten!G$6 -> HC-B1144 | N3: =Stammdaten!G6 -> HC-B1144
J4: =Stammdaten!H6 -> 2.6 | K4: =Stammdaten!H8 -> 2.6 | L4: =Stammdaten!H$10 -> 3.9 | M4: =Stammdaten!H$6 -> 2.6 | N4: =Stammdaten!H6 -> 2.6 | O4: TE
J5: =Stammdaten!I6 -> 2 | K5: =Stammdaten!I8 -> 2 | L5: =Stammdaten!I$10 -> 4 | M5: =Stammdaten!I$6 -> 2 | N5: =Stammdaten!I6 -> 2 | O5: Kanäle
A6: Zuordnung | B6: Summen | C6: ='Beschatttung und Fenster'!C12 -> Normal | D6: ='Beschatttung und Fenster'!D12 -> Schlotterer Retrolux | E6: ='Beschatttung und Fenster'!E12 -> 24V Antrieb | F6: ='Beschatttung und Fenster'!F12 -> Rollo | G6: ='Beschatttung und Fenster'!G12 -> ROTO | H6: ='Beschatttung und Fenster'!H12 -> Velux | I6: ='Beschatttung und Fenster'!I12 -> Fensterkontakt | J6: ='Beschatttung und Fenster'!C12 -> Normal | K6: ='Beschatttung und Fenster'!D12 -> Schlotterer Retrolux | L6: ='Beschatttung und Fenster'!E12 -> 24V Antrieb | M6: ='Beschatttung und Fenster'!F12 -> Rollo | N6: ='Beschatttung und Fenster'!G12 -> ROTO | O6: Teilungseinheiten | P6: SUMME Module Normal + Rollo + ROTO
J7: =SUM(J8:J12) -> 0 | K7: =SUM(K8:K12) -> 0 | L7: 0 | M7: 0 | N7: 0 | P7: =J7+M7+N7 -> 0
A8: ='Mein Zuhause'!$D9 -> Hauptverteiler | B8: =Stammdaten!$D4 -> Hauptverteiler | C8: =SUMIF($A$8:$A$44,$B8,'Beschatttung und Fenster'!C$14:C$50) -> 0 | D8: =SUMIF($A$8:$A$44,$B8,'Beschatttung und Fenster'!D$14:D$50) -> 0 | E8: =SUMIF($A$8:$A$44,$B8,'Beschatttung und Fenster'!E$14:E$50) -> 0 | F8: =SUMIF($A$8:$A$44,$B8,'Beschatttung und Fenster'!F$14:F$50) -> 0 | G8: =SUMIF($A$8:$A$44,$B8,'Beschatttung und Fenster'!G$14:G$50) -> 0 | H8: =SUMIF($A$8:$A$44,$B8,'Beschatttung und Fenster'!H$14:H$50) -> 0 | I8: =SUMIF($A$8:$A$44,$B8,'Beschatttung und Fenster'!I$14:I$50) -> 0 | J8: =ROUNDUP(C8/J$5,0) -> 0 | K8: =ROUNDUP(D8/K$5,0) -> 0 | L8: 0 | M8: 0 | N8: 0 | O8: =J8*$J$4+K8*$K$4+L8*$L$4+M8*$M$4+N8*$N$4 -> 0
A9: ='Mein Zuhause'!$D10 -> Hauptverteiler | B9: =Stammdaten!$D5 -> Subverteiler 1 | C9: =SUMIF($A$8:$A$44,$B9,'Beschatttung und Fenster'!C$14:C$50) -> 0 | D9: =SUMIF($A$8:$A$44,$B9,'Beschatttung und Fenster'!D$14:D$50) -> 0 | E9: =SUMIF($A$8:$A$44,$B9,'Beschatttung und Fenster'!E$14:E$50) -> 0 | F9: =SUMIF($A$8:$A$44,$B9,'Beschatttung und Fenster'!F$14:F$50) -> 0 | G9: =SUMIF($A$8:$A$44,$B9,'Beschatttung und Fenster'!G$14:G$50) -> 0 | H9: =SUMIF($A$8:$A$44,$B9,'Beschatttung und Fenster'!H$14:H$50) -> 0 | I9: =SUMIF($A$8:$A$44,$B9,'Beschatttung und Fenster'!I$14:I$50) -> 0 | J9: =ROUNDUP(C9/J$5,0) -> 0 | K9: =ROUNDUP(D9/K$5,0) -> 0 | L9: =ROUNDUP(E9/L$5,0) -> 0 | M9: =ROUNDUP(F9/M$5,0) -> 0 | N9: =ROUNDUP(G9/N$5,0) -> 0 | O9: =J9*$J$4+K9*$K$4+L9*$L$4+M9*$M$4+N9*$N$4 -> 0
A10: ='Mein Zuhause'!$D11 -> Hauptverteiler | B10: =Stammdaten!$D6 -> Subverteiler 2 | C10: =SUMIF($A$8:$A$44,$B10,'Beschatttung und Fenster'!C$14:C$50) -> 0 | D10: =SUMIF($A$8:$A$44,$B10,'Beschatttung und Fenster'!D$14:D$50) -> 0 | E10: =SUMIF($A$8:$A$44,$B10,'Beschatttung und Fenster'!E$14:E$50) -> 0 | F10: =SUMIF($A$8:$A$44,$B10,'Beschatttung und Fenster'!F$14:F$50) -> 0 | G10: =SUMIF($A$8:$A$44,$B10,'Beschatttung und Fenster'!G$14:G$50) -> 0 | H10: =SUMIF($A$8:$A$44,$B10,'Beschatttung und Fenster'!H$14:H$50) -> 0 | I10: =SUMIF($A$8:$A$44,$B10,'Beschatttung und Fenster'!I$14:I$50) -> 0 | J10: 0 | K10: 0 | L10: 0 | M10: 0 | N10: 0 | O10: 0
A11: ='Mein Zuhause'!$D12 -> Hauptverteiler | B11: =Stammdaten!$D7 -> Subverteiler 3 | C11: =SUMIF($A$8:$A$44,$B11,'Beschatttung und Fenster'!C$14:C$50) -> 0 | D11: =SUMIF($A$8:$A$44,$B11,'Beschatttung und Fenster'!D$14:D$50) -> 0 | E11: =SUMIF($A$8:$A$44,$B11,'Beschatttung und Fenster'!E$14:E$50) -> 0 | F11: =SUMIF($A$8:$A$44,$B11,'Beschatttung und Fenster'!F$14:F$50) -> 0 | G11: =SUMIF($A$8:$A$44,$B11,'Beschatttung und Fenster'!G$14:G$50) -> 0 | H11: =SUMIF($A$8:$A$44,$B11,'Beschatttung und Fenster'!H$14:H$50) -> 0 | I11: =SUMIF($A$8:$A$44,$B11,'Beschatttung und Fenster'!I$14:I$50) -> 0 | J11: 0 | K11: 0 | L11: 0 | M11: 0 | N11: 0 | O11: 0
A12: ='Mein Zuhause'!$D13 -> Hauptverteiler | B12: =Stammdaten!$D8 -> Subverteiler 4 | C12: =SUMIF($A$8:$A$44,$B12,'Beschatttung und Fenster'!C$14:C$50) -> 0 | D12: =SUMIF($A$8:$A$44,$B12,'Beschatttung und Fenster'!D$14:D$50) -> 0 | E12: =SUMIF($A$8:$A$44,$B12,'Beschatttung und Fenster'!E$14:E$50) -> 0 | F12: =SUMIF($A$8:$A$44,$B12,'Beschatttung und Fenster'!F$14:F$50) -> 0 | G12: =SUMIF($A$8:$A$44,$B12,'Beschatttung und Fenster'!G$14:G$50) -> 0 | H12: =SUMIF($A$8:$A$44,$B12,'Beschatttung und Fenster'!H$14:H$50) -> 0 | I12: =SUMIF($A$8:$A$44,$B12,'Beschatttung und Fenster'!I$14:I$50) -> 0 | J12: 0 | K12: 0 | L12: 0 | M12: 0 | N12: 0 | O12: 0
A13: ='Mein Zuhause'!$D14 -> Hauptverteiler
A14: ='Mein Zuhause'!$D15 -> Hauptverteiler
A15: ='Mein Zuhause'!$D16 -> Hauptverteiler
A16: ='Mein Zuhause'!$D17 -> Hauptverteiler
A17: ='Mein Zuhause'!$D18 -> Hauptverteiler
A18: ='Mein Zuhause'!$D19 -> Hauptverteiler
A19: ='Mein Zuhause'!$D20 -> Hauptverteiler
A20: ='Mein Zuhause'!$D21 -> Hauptverteiler
A21: ='Mein Zuhause'!$D22 -> Hauptverteiler
A22: ='Mein Zuhause'!$D23 -> Hauptverteiler
A23: ='Mein Zuhause'!$D24 -> Hauptverteiler
A24: ='Mein Zuhause'!$D25 -> Hauptverteiler
A25: ='Mein Zuhause'!$D26 -> Hauptverteiler
A26: ='Mein Zuhause'!$D27 -> Hauptverteiler
A27: ='Mein Zuhause'!$D28 -> Hauptverteiler
A28: ='Mein Zuhause'!$D29 -> Hauptverteiler
A29: ='Mein Zuhause'!$D30 -> Hauptverteiler
A30: ='Mein Zuhause'!$D31 -> Hauptverteiler
A31: ='Mein Zuhause'!$D32 -> Hauptverteiler
A32: ='Mein Zuhause'!$D33 -> Hauptverteiler
A33: ='Mein Zuhause'!$D34 -> Hauptverteiler
A34: ='Mein Zuhause'!$D35 -> Hauptverteiler
A35: ='Mein Zuhause'!$D36 -> Hauptverteiler
A36: ='Mein Zuhause'!$D37 -> Hauptverteiler
A37: ='Mein Zuhause'!$D38 -> Hauptverteiler
A38: ='Mein Zuhause'!$D39 -> Hauptverteiler
A39: ='Mein Zuhause'!$D40 -> Hauptverteiler
A40: ='Mein Zuhause'!$D41 -> Hauptverteiler
A41: ='Mein Zuhause'!$D42 -> Hauptverteiler
A42: ='Mein Zuhause'!$D43 -> Hauptverteiler
A43: ='Mein Zuhause'!$D44 -> Hauptverteiler
A44: ='Mein Zuhause'!$D45 -> Hauptverteiler

Sheet Raumregelungen
B2: Klima und Wohnkomfort
B4: Bereit für wohlige Wärme, aber auch bereit, Sie beim Energiesparen zu unterstützen. So lassen sich die Vorteile von evon Smart Home im Bereich Klima zusammenfassen.
B6: Beachten Sie auch, dass Sie die Integration Ihrer Heizung (Wärmepumpe oder dgl.) mitplanen. Für weitere Informationen kontaktieren Sie Ihren evon Smart Home Betreuer.
E8: nächster Schritt
B11: Zubehör
B12: Raumbediengeräte | C12: Nur Temperatursensor | D12: =C16 -> 0 | E12: Stk
B15: Raum | C15: Heizkreis | D15: Kühldecke
B16: SUMME | C16: =COUNTIF(C17:C54,"X") -> 0 | D16: =COUNTIF(D17:D54,"X") -> 0
B17: =IF('Mein Zuhause'!B9<>"",'Mein Zuhause'!B9&" - "&'Mein Zuhause'!C9,"") -> 
B18: =IF('Mein Zuhause'!B10<>"",'Mein Zuhause'!B10&" - "&'Mein Zuhause'!C10,"") -> 
B19: =IF('Mein Zuhause'!B11<>"",'Mein Zuhause'!B11&" - "&'Mein Zuhause'!C11,"") -> 
B20: =IF('Mein Zuhause'!B12<>"",'Mein Zuhause'!B12&" - "&'Mein Zuhause'!C12,"") -> 
B21: =IF('Mein Zuhause'!B13<>"",'Mein Zuhause'!B13&" - "&'Mein Zuhause'!C13,"") -> 
B22: =IF('Mein Zuhause'!B14<>"",'Mein Zuhause'!B14&" - "&'Mein Zuhause'!C14,"") -> 
B23: =IF('Mein Zuhause'!B15<>"",'Mein Zuhause'!B15&" - "&'Mein Zuhause'!C15,"") -> 
B24: =IF('Mein Zuhause'!B16<>"",'Mein Zuhause'!B16&" - "&'Mein Zuhause'!C16,"") -> 
B25: =IF('Mein Zuhause'!B17<>"",'Mein Zuhause'!B17&" - "&'Mein Zuhause'!C17,"") -> 
B26: =IF('Mein Zuhause'!B18<>"",'Mein Zuhause'!B18&" - "&'Mein Zuhause'!C18,"") -> 
B27: =IF('Mein Zuhause'!B19<>"",'Mein Zuhause'!B19&" - "&'Mein Zuhause'!C19,"") -> 
B28: =IF('Mein Zuhause'!B20<>"",'Mein Zuhause'!B20&" - "&'Mein Zuhause'!C20,"") -> 
B29: =IF('Mein Zuhause'!B21<>"",'Mein Zuhause'!B21&" - "&'Mein Zuhause'!C21,"") -> 
B30: =IF('Mein Zuhause'!B22<>"",'Mein Zuhause'!B22&" - "&'Mein Zuhause'!C22,"") -> 
B31: =IF('Mein Zuhause'!B23<>"",'Mein Zuhause'!B23&" - "&'Mein Zuhause'!C23,"") -> 
B32: =IF('Mein Zuhause'!B24<>"",'Mein Zuhause'!B24&" - "&'Mein Zuhause'!C24,"") -> 
B33: =IF('Mein Zuhause'!B25<>"",'Mein Zuhause'!B25&" - "&'Mein Zuhause'!C25,"") -> 
B34: =IF('Mein Zuhause'!B26<>"",'Mein Zuhause'!B26&" - "&'Mein Zuhause'!C26,"") -> 
B35: =IF('Mein Zuhause'!B27<>"",'Mein Zuhause'!B27&" - "&'Mein Zuhause'!C27,"") -> 
B36: =IF('Mein Zuhause'!B28<>"",'Mein Zuhause'!B28&" - "&'Mein Zuhause'!C28,"") -> 
B37: =IF('Mein Zuhause'!B29<>"",'Mein Zuhause'!B29&" - "&'Mein Zuhause'!C29,"") -> 
B38: =IF('Mein Zuhause'!B30<>"",'Mein Zuhause'!B30&" - "&'Mein Zuhause'!C30,"") -> 
B39: =IF('Mein Zuhause'!B31<>"",'Mein Zuhause'!B31&" - "&'Mein Zuhause'!C31,"") -> 
B40: =IF('Mein Zuhause'!B32<>"",'Mein Zuhause'!B32&" - "&'Mein Zuhause'!C32,"") -> 
B41: =IF('Mein Zuhause'!B33<>"",'Mein Zuhause'!B33&" - "&'Mein Zuhause'!C33,"") -> 
B42: =IF('Mein Zuhause'!B34<>"",'Mein Zuhause'!B34&" - "&'Mein Zuhause'!C34,"") -> 
B43: =IF('Mein Zuhause'!B35<>"",'Mein Zuhause'!B35&" - "&'Mein Zuhause'!C35,"") -> 
B44: =IF('Mein Zuhause'!B36<>"",'Mein Zuhause'!B36&" - "&'Mein Zuhause'!C36,"") -> 
B45: =IF('Mein Zuhause'!B37<>"",'Mein Zuhause'!B37&" - "&'Mein Zuhause'!C37,"") -> 
B46: =IF('Mein Zuhause'!B38<>"",'Mein Zuhause'!B38&" - "&'Mein Zuhause'!C38,"") -> 
B47: =IF('Mein Zuhause'!B39<>"",'Mein Zuhause'!B39&" - "&'Mein Zuhause'!C39,"") -> 
B48: =IF('Mein Zuhause'!B40<>"",'Mein Zuhause'!B40&" - "&'Mein Zuhause'!C40,"") -> 
B49: =IF('Mein Zuhause'!B41<>"",'Mein Zuhause'!B41&" - "&'Mein Zuhause'!C41,"") -> 
B50: =IF('Mein Zuhause'!B42<>"",'Mein Zuhause'!B42&" - "&'Mein Zuhause'!C42,"") -> 
B51: =IF('Mein Zuhause'!B43<>"",'Mein Zuhause'!B43&" - "&'Mein Zuhause'!C43,"") -> 
B52: =IF('Mein Zuhause'!B44<>"",'Mein Zuhause'!B44&" - "&'Mein Zuhause'!C44,"") -> 
B53: =IF('Mein Zuhause'!B45<>"",'Mein Zuhause'!B45&" - "&'Mein Zuhause'!C45,"") -> 

Sheet Bilder1 (hidden)
A3: Eco
A4: Touch
A5: Nur Temperatursensor

Sheet Berechnung Raumreg (hidden)
C1: Verteileraufteilung | G1: MODULE | H1: Anz. Kanäle
G3: =Stammdaten!G15 -> HC-C1144
G4: =Stammdaten!H15 -> 2.6
G5: =Stammdaten!I15 -> 4
C6: Zuordnung | D6: Summen | E6: =Raumregelungen!C15 -> Heizkreis | F6: =Raumregelungen!D15 -> Kühldecke | G6: Heiz + Kühldekce | H6: Teilungseinheiten
G7: =SUM(G8:G12) -> 0
A8: =IF(Raumregelungen!C17="X",1,0) -> 0 | B8: =IF(Raumregelungen!D17="X",1,0) -> 0 | C8: ='Mein Zuhause'!$D9 -> Hauptverteiler | D8: =Stammdaten!$D$4 -> Hauptverteiler | E8: =SUMIF($C$8:$C$44,$D8,$A$8:$A$44) -> 0 | F8: =SUMIF($C$8:$C$44,$D8,$B$8:$B$44) -> 0 | G8: =ROUNDUP((E8+F8)/$G$5,0) -> 0 | H8: =G8*$G$4 -> 0
A9: =IF(Raumregelungen!C18="X",1,0) -> 0 | B9: =IF(Raumregelungen!D18="X",1,0) -> 0 | C9: ='Mein Zuhause'!$D10 -> Hauptverteiler | D9: =Stammdaten!$D$5 -> Subverteiler 1 | E9: =SUMIF($C$8:$C$44,$D9,$A$8:$A$44) -> 0 | F9: =SUMIF($C$8:$C$44,$D9,$B$8:$B$44) -> 0 | G9: =ROUNDUP((E9+F9)/$G$5,0) -> 0 | H9: =G9*$G$4 -> 0
A10: =IF(Raumregelungen!C19="X",1,0) -> 0 | B10: =IF(Raumregelungen!D19="X",1,0) -> 0 | C10: ='Mein Zuhause'!$D11 -> Hauptverteiler | D10: =Stammdaten!$D$6 -> Subverteiler 2 | E10: 0 | F10: 0 | G10: 0 | H10: 0
A11: =IF(Raumregelungen!C20="X",1,0) -> 0 | B11: =IF(Raumregelungen!D20="X",1,0) -> 0 | C11: ='Mein Zuhause'!$D12 -> Hauptverteiler | D11: =Stammdaten!$D$7 -> Subverteiler 3 | E11: 0 | F11: 0 | G11: 0 | H11: 0
A12: =IF(Raumregelungen!C21="X",1,0) -> 0 | B12: =IF(Raumregelungen!D21="X",1,0) -> 0 | C12: ='Mein Zuhause'!$D13 -> Hauptverteiler | D12: =Stammdaten!$D$8 -> Subverteiler 4 | E12: 0 | F12: 0 | G12: 0 | H12: 0
A13: =IF(Raumregelungen!C22="X",1,0) -> 0 | B13: =IF(Raumregelungen!D22="X",1,0) -> 0 | C13: ='Mein Zuhause'!$D14 -> Hauptverteiler
A14: =IF(Raumregelungen!C23="X",1,0) -> 0 | B14: =IF(Raumregelungen!D23="X",1,0) -> 0 | C14: ='Mein Zuhause'!$D15 -> Hauptverteiler
A15: =IF(Raumregelungen!C24="X",1,0) -> 0 | B15: =IF(Raumregelungen!D24="X",1,0) -> 0 | C15: ='Mein Zuhause'!$D16 -> Hauptverteiler
A16: =IF(Raumregelungen!C25="X",1,0) -> 0 | B16: =IF(Raumregelungen!D25="X",1,0) -> 0 | C16: ='Mein Zuhause'!$D17 -> Hauptverteiler
A17: =IF(Raumregelungen!C26="X",1,0) -> 0 | B17: =IF(Raumregelungen!D26="X",1,0) -> 0 | C17: ='Mein Zuhause'!$D18 -> Hauptverteiler
A18: =IF(Raumregelungen!C27="X",1,0) -> 0 | B18: =IF(Raumregelungen!D27="X",1,0) -> 0 | C18: ='Mein Zuhause'!$D19 -> Hauptverteiler
A19: =IF(Raumregelungen!C28="X",1,0) -> 0 | B19: =IF(Raumregelungen!D28="X",1,0) -> 0 | C19: ='Mein Zuhause'!$D20 -> Hauptverteiler
A20: =IF(Raumregelungen!C29="X",1,0) -> 0 | B20: =IF(Raumregelungen!D29="X",1,0) -> 0 | C20: ='Mein Zuhause'!$D21 -> Hauptverteiler
A21: =IF(Raumregelungen!C30="X",1,0) -> 0 | B21: =IF(Raumregelungen!D30="X",1,0) -> 0 | C21: ='Mein Zuhause'!$D22 -> Hauptverteiler
A22: =IF(Raumregelungen!C31="X",1,0) -> 0 | B22: =IF(Raumregelungen!D31="X",1,0) -> 0 | C22: ='Mein Zuhause'!$D23 -> Hauptverteiler
A23: =IF(Raumregelungen!C32="X",1,0) -> 0 | B23: =IF(Raumregelungen!D32="X",1,0) -> 0 | C23: ='Mein Zuhause'!$D24 -> Hauptverteiler
A24: =IF(Raumregelungen!C33="X",1,0) -> 0 | B24: =IF(Raumregelungen!D33="X",1,0) -> 0 | C24: ='Mein Zuhause'!$D25 -> Hauptverteiler
A25: =IF(Raumregelungen!C34="X",1,0) -> 0 | B25: =IF(Raumregelungen!D34="X",1,0) -> 0 | C25: ='Mein Zuhause'!$D26 -> Hauptverteiler
A26: =IF(Raumregelungen!C35="X",1,0) -> 0 | B26: =IF(Raumregelungen!D35="X",1,0) -> 0 | C26: ='Mein Zuhause'!$D27 -> Hauptverteiler
A27: =IF(Raumregelungen!C36="X",1,0) -> 0 | B27: =IF(Raumregelungen!D36="X",1,0) -> 0 | C27: ='Mein Zuhause'!$D28 -> Hauptverteiler
A28: =IF(Raumregelungen!C37="X",1,0) -> 0 | B28: =IF(Raumregelungen!D37="X",1,0) -> 0 | C28: ='Mein Zuhause'!$D29 -> Hauptverteiler
A29: =IF(Raumregelungen!C38="X",1,0) -> 0 | B29: =IF(Raumregelungen!D38="X",1,0) -> 0 | C29: ='Mein Zuhause'!$D30 -> Hauptverteiler
A30: =IF(Raumregelungen!C39="X",1,0) -> 0 | B30: =IF(Raumregelungen!D39="X",1,0) -> 0 | C30: ='Mein Zuhause'!$D31 -> Hauptverteiler
A31: =IF(Raumregelungen!C40="X",1,0) -> 0 | B31: =IF(Raumregelungen!D40="X",1,0) -> 0 | C31: ='Mein Zuhause'!$D32 -> Hauptverteiler
A32: =IF(Raumregelungen!C41="X",1,0) -> 0 | B32: =IF(Raumregelungen!D41="X",1,0) -> 0 | C32: ='Mein Zuhause'!$D33 -> Hauptverteiler
A33: =IF(Raumregelungen!C42="X",1,0) -> 0 | B33: =IF(Raumregelungen!D42="X",1,0) -> 0 | C33: ='Mein Zuhause'!$D34 -> Hauptverteiler
A34: =IF(Raumregelungen!C43="X",1,0) -> 0 | B34: =IF(Raumregelungen!D43="X",1,0) -> 0 | C34: ='Mein Zuhause'!$D35 -> Hauptverteiler
A35: =IF(Raumregelungen!C44="X",1,0) -> 0 | B35: =IF(Raumregelungen!D44="X",1,0) -> 0 | C35: ='Mein Zuhause'!$D36 -> Hauptverteiler
A36: =IF(Raumregelungen!C45="X",1,0) -> 0 | B36: =IF(Raumregelungen!D45="X",1,0) -> 0 | C36: ='Mein Zuhause'!$D37 -> Hauptverteiler
A37: =IF(Raumregelungen!C46="X",1,0) -> 0 | B37: =IF(Raumregelungen!D46="X",1,0) -> 0 | C37: ='Mein Zuhause'!$D38 -> Hauptverteiler
A38: =IF(Raumregelungen!C47="X",1,0) -> 0 | B38: =IF(Raumregelungen!D47="X",1,0) -> 0 | C38: ='Mein Zuhause'!$D39 -> Hauptverteiler
A39: =IF(Raumregelungen!C48="X",1,0) -> 0 | B39: =IF(Raumregelungen!D48="X",1,0) -> 0 | C39: ='Mein Zuhause'!$D40 -> Hauptverteiler
A40: =IF(Raumregelungen!C49="X",1,0) -> 0 | B40: =IF(Raumregelungen!D49="X",1,0) -> 0 | C40: ='Mein Zuhause'!$D41 -> Hauptverteiler
A41: =IF(Raumregelungen!C50="X",1,0) -> 0 | B41: =IF(Raumregelungen!D50="X",1,0) -> 0 | C41: ='Mein Zuhause'!$D42 -> Hauptverteiler
A42: =IF(Raumregelungen!C51="X",1,0) -> 0 | B42: =IF(Raumregelungen!D51="X",1,0) -> 0 | C42: ='Mein Zuhause'!$D43 -> Hauptverteiler
A43: =IF(Raumregelungen!C52="X",1,0) -> 0 | B43: =IF(Raumregelungen!D52="X",1,0) -> 0 | C43: ='Mein Zuhause'!$D44 -> Hauptverteiler
A44: =IF(Raumregelungen!C53="X",1,0) -> 0 | B44: =IF(Raumregelungen!D53="X",1,0) -> 0 | C44: ='Mein Zuhause'!$D45 -> Hauptverteiler

Sheet Mulitmedia
B2: Multimedia
B4: Egal ob Hintergrundmusik und die Sprachausgabe, oder wenn Sie vergessen haben ein Fenster zu schließen. Mit evon Smart Home sind Sie bereit.
B6: Beachten Sie die Verwendung von Passiv-Lautsprechern. Die Impedanz der Lautspecher sollte zwischen 4 und 8 Ohm liegen. Dies sind Standard Lautsprecherkennzahlen. Somit können Sie aus einer Vielzahl von Lautsprechern frei wählen (siehe https://doc.evon-smarthome.com/de/faq)
E9: nächster Schritt
C11: Musik
C12: Mono | D12: Stereo | E12: Taster
B13: SUMME | C13: =COUNTIF(C14:C61,"X") -> 0 | D13: =COUNTIF(D14:D61,"X") -> 0 | E13: 0
B14: =IF('Mein Zuhause'!B9<>"",'Mein Zuhause'!B9&" - "&'Mein Zuhause'!C9,"") -> 
B15: =IF('Mein Zuhause'!B10<>"",'Mein Zuhause'!B10&" - "&'Mein Zuhause'!C10,"") -> 
B16: =IF('Mein Zuhause'!B11<>"",'Mein Zuhause'!B11&" - "&'Mein Zuhause'!C11,"") -> 
B17: =IF('Mein Zuhause'!B12<>"",'Mein Zuhause'!B12&" - "&'Mein Zuhause'!C12,"") -> 
B18: =IF('Mein Zuhause'!B13<>"",'Mein Zuhause'!B13&" - "&'Mein Zuhause'!C13,"") -> 
B19: =IF('Mein Zuhause'!B14<>"",'Mein Zuhause'!B14&" - "&'Mein Zuhause'!C14,"") -> 
B20: =IF('Mein Zuhause'!B15<>"",'Mein Zuhause'!B15&" - "&'Mein Zuhause'!C15,"") -> 
B21: =IF('Mein Zuhause'!B16<>"",'Mein Zuhause'!B16&" - "&'Mein Zuhause'!C16,"") -> 
B22: =IF('Mein Zuhause'!B17<>"",'Mein Zuhause'!B17&" - "&'Mein Zuhause'!C17,"") -> 
B23: =IF('Mein Zuhause'!B18<>"",'Mein Zuhause'!B18&" - "&'Mein Zuhause'!C18,"") -> 
B24: =IF('Mein Zuhause'!B19<>"",'Mein Zuhause'!B19&" - "&'Mein Zuhause'!C19,"") -> 
B25: =IF('Mein Zuhause'!B20<>"",'Mein Zuhause'!B20&" - "&'Mein Zuhause'!C20,"") -> 
B26: =IF('Mein Zuhause'!B21<>"",'Mein Zuhause'!B21&" - "&'Mein Zuhause'!C21,"") -> 
B27: =IF('Mein Zuhause'!B22<>"",'Mein Zuhause'!B22&" - "&'Mein Zuhause'!C22,"") -> 
B28: =IF('Mein Zuhause'!B23<>"",'Mein Zuhause'!B23&" - "&'Mein Zuhause'!C23,"") -> 
B29: =IF('Mein Zuhause'!B24<>"",'Mein Zuhause'!B24&" - "&'Mein Zuhause'!C24,"") -> 
B30: =IF('Mein Zuhause'!B25<>"",'Mein Zuhause'!B25&" - "&'Mein Zuhause'!C25,"") -> 
B31: =IF('Mein Zuhause'!B26<>"",'Mein Zuhause'!B26&" - "&'Mein Zuhause'!C26,"") -> 
B32: =IF('Mein Zuhause'!B27<>"",'Mein Zuhause'!B27&" - "&'Mein Zuhause'!C27,"") -> 
B33: =IF('Mein Zuhause'!B28<>"",'Mein Zuhause'!B28&" - "&'Mein Zuhause'!C28,"") -> 
B34: =IF('Mein Zuhause'!B29<>"",'Mein Zuhause'!B29&" - "&'Mein Zuhause'!C29,"") -> 
B35: =IF('Mein Zuhause'!B30<>"",'Mein Zuhause'!B30&" - "&'Mein Zuhause'!C30,"") -> 
B36: =IF('Mein Zuhause'!B31<>"",'Mein Zuhause'!B31&" - "&'Mein Zuhause'!C31,"") -> 
B37: =IF('Mein Zuhause'!B32<>"",'Mein Zuhause'!B32&" - "&'Mein Zuhause'!C32,"") -> 
B38: =IF('Mein Zuhause'!B33<>"",'Mein Zuhause'!B33&" - "&'Mein Zuhause'!C33,"") -> 
B39: =IF('Mein Zuhause'!B34<>"",'Mein Zuhause'!B34&" - "&'Mein Zuhause'!C34,"") -> 
B40: =IF('Mein Zuhause'!B35<>"",'Mein Zuhause'!B35&" - "&'Mein Zuhause'!C35,"") -> 
B41: =IF('Mein Zuhause'!B36<>"",'Mein Zuhause'!B36&" - "&'Mein Zuhause'!C36,"") -> 
B42: =IF('Mein Zuhause'!B37<>"",'Mein Zuhause'!B37&" - "&'Mein Zuhause'!C37,"") -> 

Sheet Berechnung Multi (hidden)
D1: Verteileraufteilung | I1: MODULE | J1: Anz. Kanäle
I3: 2 | J3: 2
D4: Zuordnung | E4: Summen | F4: =Mulitmedia!C12 -> Mono | G4: =Mulitmedia!D12 -> Stereo | H4: =Mulitmedia!E12 -> Taster | I4: =Mulitmedia!C12 -> Mono | J4: =Mulitmedia!D12 -> Stereo
F5: =SUM(F6:F10) -> 0 | G5: =SUM(G6:G10) -> 0
A6: =IF(Mulitmedia!C14="X",1,0) -> 0 | B6: =IF(Mulitmedia!D14="X",2,0) -> 0 | C6: =IF(Mulitmedia!E14="X",4,0) -> 0 | D6: ='Mein Zuhause'!$D9 -> Hauptverteiler | E6: =Stammdaten!$D4 -> Hauptverteiler | F6: =SUMIF($D$6:$D$42,$E6,$A$6:$A$42) -> 0 | G6: =SUMIF($D$6:$D$42,$E6,$B$6:$B$42) -> 0 | H6: =SUMIF($D$6:$D$42,$E6,$C$6:$C$42) -> 0
A7: =IF(Mulitmedia!C15="X",1,0) -> 0 | B7: =IF(Mulitmedia!D15="X",2,0) -> 0 | C7: =IF(Mulitmedia!E15="X",4,0) -> 0 | D7: ='Mein Zuhause'!$D10 -> Hauptverteiler | E7: =Stammdaten!$D5 -> Subverteiler 1 | F7: =SUMIF($D$6:$D$42,$E7,$A$6:$A$42) -> 0 | G7: =SUMIF($D$6:$D$42,$E7,$B$6:$B$42) -> 0 | H7: =SUMIF($D$6:$D$42,$E7,$C$6:$C$42) -> 0 | I7: keine aufteilung - immer im Hauptverteiler
A8: =IF(Mulitmedia!C16="X",1,0) -> 0 | B8: =IF(Mulitmedia!D16="X",2,0) -> 0 | C8: =IF(Mulitmedia!E16="X",4,0) -> 0 | D8: ='Mein Zuhause'!$D11 -> Hauptverteiler | E8: =Stammdaten!$D6 -> Subverteiler 2 | F8: 0 | G8: 0 | H8: 0
A9: =IF(Mulitmedia!C17="X",1,0) -> 0 | B9: =IF(Mulitmedia!D17="X",2,0) -> 0 | C9: =IF(Mulitmedia!E17="X",4,0) -> 0 | D9: ='Mein Zuhause'!$D12 -> Hauptverteiler | E9: =Stammdaten!$D7 -> Subverteiler 3 | F9: 0 | G9: 0 | H9: 0
A10: =IF(Mulitmedia!C18="X",1,0) -> 0 | B10: =IF(Mulitmedia!D18="X",2,0) -> 0 | C10: =IF(Mulitmedia!E18="X",4,0) -> 0 | D10: ='Mein Zuhause'!$D13 -> Hauptverteiler | E10: =Stammdaten!$D8 -> Subverteiler 4 | F10: 0 | G10: 0 | H10: 0
A11: =IF(Mulitmedia!C19="X",1,0) -> 0 | B11: =IF(Mulitmedia!D19="X",2,0) -> 0 | C11: =IF(Mulitmedia!E19="X",4,0) -> 0 | D11: ='Mein Zuhause'!$D14 -> Hauptverteiler
A12: =IF(Mulitmedia!C20="X",1,0) -> 0 | B12: =IF(Mulitmedia!D20="X",2,0) -> 0 | C12: =IF(Mulitmedia!E20="X",4,0) -> 0 | D12: ='Mein Zuhause'!$D15 -> Hauptverteiler
A13: =IF(Mulitmedia!C21="X",1,0) -> 0 | B13: =IF(Mulitmedia!D21="X",2,0) -> 0 | C13: =IF(Mulitmedia!E21="X",4,0) -> 0 | D13: ='Mein Zuhause'!$D16 -> Hauptverteiler
A14: =IF(Mulitmedia!C22="X",1,0) -> 0 | B14: =IF(Mulitmedia!D22="X",2,0) -> 0 | C14: =IF(Mulitmedia!E22="X",4,0) -> 0 | D14: ='Mein Zuhause'!$D17 -> Hauptverteiler
A15: =IF(Mulitmedia!C23="X",1,0) -> 0 | B15: =IF(Mulitmedia!D23="X",2,0) -> 0 | C15: =IF(Mulitmedia!E23="X",4,0) -> 0 | D15: ='Mein Zuhause'!$D18 -> Hauptverteiler
A16: =IF(Mulitmedia!C24="X",1,0) -> 0 | B16: =IF(Mulitmedia!D24="X",2,0) -> 0 | C16: =IF(Mulitmedia!E24="X",4,0) -> 0 | D16: ='Mein Zuhause'!$D19 -> Hauptverteiler
A17: =IF(Mulitmedia!C25="X",1,0) -> 0 | B17: =IF(Mulitmedia!D25="X",2,0) -> 0 | C17: =IF(Mulitmedia!E25="X",4,0) -> 0 | D17: ='Mein Zuhause'!$D20 -> Hauptverteiler
A18: =IF(Mulitmedia!C26="X",1,0) -> 0 | B18: =IF(Mulitmedia!D26="X",2,0) -> 0 | C18: =IF(Mulitmedia!E26="X",4,0) -> 0 | D18: ='Mein Zuhause'!$D21 -> Hauptverteiler
A19: =IF(Mulitmedia!C27="X",1,0) -> 0 | B19: =IF(Mulitmedia!D27="X",2,0) -> 0 | C19: =IF(Mulitmedia!E27="X",4,0) -> 0 | D19: ='Mein Zuhause'!$D22 -> Hauptverteiler
A20: =IF(Mulitmedia!C28="X",1,0) -> 0 | B20: =IF(Mulitmedia!D28="X",2,0) -> 0 | C20: =IF(Mulitmedia!E28="X",4,0) -> 0 | D20: ='Mein Zuhause'!$D23 -> Hauptverteiler
A21: =IF(Mulitmedia!C29="X",1,0) -> 0 | B21: =IF(Mulitmedia!D29="X",2,0) -> 0 | C21: =IF(Mulitmedia!E29="X",4,0) -> 0 | D21: ='Mein Zuhause'!$D24 -> Hauptverteiler
A22: =IF(Mulitmedia!C30="X",1,0) -> 0 | B22: =IF(Mulitmedia!D30="X",2,0) -> 0 | C22: =IF(Mulitmedia!E30="X",4,0) -> 0 | D22: ='Mein Zuhause'!$D25 -> Hauptverteiler
A23: =IF(Mulitmedia!C31="X",1,0) -> 0 | B23: =IF(Mulitmedia!D31="X",2,0) -> 0 | C23: =IF(Mulitmedia!E31="X",4,0) -> 0 | D23: ='Mein Zuhause'!$D26 -> Hauptverteiler
A24: =IF(Mulitmedia!C32="X",1,0) -> 0 | B24: =IF(Mulitmedia!D32="X",2,0) -> 0 | C24: =IF(Mulitmedia!E32="X",4,0) -> 0 | D24: ='Mein Zuhause'!$D27 -> Hauptverteiler
A25: =IF(Mulitmedia!C33="X",1,0) -> 0 | B25: =IF(Mulitmedia!D33="X",2,0) -> 0 | C25: =IF(Mulitmedia!E33="X",4,0) -> 0 | D25: ='Mein Zuhause'!$D28 -> Hauptverteiler
A26: =IF(Mulitmedia!C34="X",1,0) -> 0 | B26: =IF(Mulitmedia!D34="X",2,0) -> 0 | C26: =IF(Mulitmedia!E34="X",4,0) -> 0 | D26: ='Mein Zuhause'!$D29 -> Hauptverteiler
A27: =IF(Mulitmedia!C35="X",1,0) -> 0 | B27: =IF(Mulitmedia!D35="X",2,0) -> 0 | C27: =IF(Mulitmedia!E35="X",4,0) -> 0 | D27: ='Mein Zuhause'!$D30 -> Hauptverteiler
A28: =IF(Mulitmedia!C36="X",1,0) -> 0 | B28: =IF(Mulitmedia!D36="X",2,0) -> 0 | C28: =IF(Mulitmedia!E36="X",4,0) -> 0 | D28: ='Mein Zuhause'!$D31 -> Hauptverteiler
A29: =IF(Mulitmedia!C37="X",1,0) -> 0 | B29: =IF(Mulitmedia!D37="X",2,0) -> 0 | C29: =IF(Mulitmedia!E37="X",4,0) -> 0 | D29: ='Mein Zuhause'!$D32 -> Hauptverteiler
A30: =IF(Mulitmedia!C38="X",1,0) -> 0 | B30: =IF(Mulitmedia!D38="X",2,0) -> 0 | C30: =IF(Mulitmedia!E38="X",4,0) -> 0 | D30: ='Mein Zuhause'!$D33 -> Hauptverteiler
A31: =IF(Mulitmedia!C39="X",1,0) -> 0 | B31: =IF(Mulitmedia!D39="X",2,0) -> 0 | C31: =IF(Mulitmedia!E39="X",4,0) -> 0 | D31: ='Mein Zuhause'!$D34 -> Hauptverteiler
A32: =IF(Mulitmedia!C40="X",1,0) -> 0 | B32: =IF(Mulitmedia!D40="X",2,0) -> 0 | C32: =IF(Mulitmedia!E40="X",4,0) -> 0 | D32: ='Mein Zuhause'!$D35 -> Hauptverteiler
A33: =IF(Mulitmedia!C41="X",1,0) -> 0 | B33: =IF(Mulitmedia!D41="X",2,0) -> 0 | C33: =IF(Mulitmedia!E41="X",4,0) -> 0 | D33: ='Mein Zuhause'!$D36 -> Hauptverteiler
A34: =IF(Mulitmedia!C42="X",1,0) -> 0 | B34: =IF(Mulitmedia!D42="X",2,0) -> 0 | C34: =IF(Mulitmedia!E42="X",4,0) -> 0 | D34: ='Mein Zuhause'!$D37 -> Hauptverteiler
A35: =IF(Mulitmedia!C43="X",1,0) -> 0 | B35: =IF(Mulitmedia!D43="X",2,0) -> 0 | C35: =IF(Mulitmedia!E43="X",4,0) -> 0 | D35: ='Mein Zuhause'!$D38 -> Hauptverteiler
A36: =IF(Mulitmedia!C44="X",1,0) -> 0 | B36: =IF(Mulitmedia!D44="X",2,0) -> 0 | C36: =IF(Mulitmedia!E44="X",4,0) -> 0 | D36: ='Mein Zuhause'!$D39 -> Hauptverteiler
A37: =IF(Mulitmedia!C45="X",1,0) -> 0 | B37: =IF(Mulitmedia!D45="X",2,0) -> 0 | C37: =IF(Mulitmedia!E45="X",4,0) -> 0 | D37: ='Mein Zuhause'!$D40 -> Hauptverteiler
A38: =IF(Mulitmedia!C46="X",1,0) -> 0 | B38: =IF(Mulitmedia!D46="X",2,0) -> 0 | C38: =IF(Mulitmedia!E46="X",4,0) -> 0 | D38: ='Mein Zuhause'!$D41 -> Hauptverteiler
A39: =IF(Mulitmedia!C47="X",1,0) -> 0 | B39: =IF(Mulitmedia!D47="X",2,0) -> 0 | C39: =IF(Mulitmedia!E47="X",4,0) -> 0 | D39: ='Mein Zuhause'!$D42 -> Hauptverteiler
A40: =IF(Mulitmedia!C48="X",1,0) -> 0 | B40: =IF(Mulitmedia!D48="X",2,0) -> 0 | C40: =IF(Mulitmedia!E48="X",4,0) -> 0 | D40: ='Mein Zuhause'!$D43 -> Hauptverteiler
A41: =IF(Mulitmedia!C49="X",1,0) -> 0 | B41: =IF(Mulitmedia!D49="X",2,0) -> 0 | C41: =IF(Mulitmedia!E49="X",4,0) -> 0 | D41: ='Mein Zuhause'!$D44 -> Hauptverteiler
A42: =IF(Mulitmedia!C50="X",1,0) -> 0 | B42: =IF(Mulitmedia!D50="X",2,0) -> 0 | C42: =IF(Mulitmedia!E50="X",4,0) -> 0 | D42: ='Mein Zuhause'!$D45 -> Hauptverteiler

Sheet Sicherheit
B2: Sicherheit
B4: Heute versprechen eine Reihe von meist elektronischen Helfern mehr Sicherheit in Ihrem Zuhause: Ein Rauchmelder in der Küche, eine Alarmanlage oder eine Kamera an der Eingangstür. Alles für sich nützlich und sinnvoll. Spannender wird es, wenn die Vorteile aller Teilsysteme in einem Smart Home System zusammengefasst werden.
R6: nächster Schritt
B8: Netzwerkkomponente zur Spannungsversorgung (POE) der Kameras mit berücksichtigen | G8: Ja
C10: Kameras | E10: Rauchmelder | F10: Zutritt | G10: mit Chip (RFID) | I10: Zutritt intern berechnung | Q10: Sonstige
B11: Raum | C11: Dome | D11: Bullet | F11: Fingerprint | H11: Montage | I11: up normal | J11: up mit chip | K11: ap normal | L11: ap chip | M11: Türsprech | N11: Türsprech mit chip | O11: integra | P11: integra mit chip | Q11: Türsprechanlage | R11: Elektr. Haustür | S11: Garagentor
B12: Summe | C12: =SUM(C13:C43) -> 0 | D12: =SUM(D13:D43) -> 0 | E12: 0 | I12: =SUM(I13:I45) -> 0 | J12: 0 | K12: 0 | L12: 0 | M12: 0 | N12: 0 | O12: 0 | P12: 0 | Q12: =SUM(Q13:Q40) -> 0 | R12: 0 | S12: 0
B13: =IF('Mein Zuhause'!B9<>"",'Mein Zuhause'!B9&" - "&'Mein Zuhause'!C9,"") ->  | G13: - | H13: - | I13: =IF($G13<>"X",IF($H13="Unterputz",1,0),0)*IF($F13="X",1,0) -> 0 | J13: =IF($G13="X",IF($H13="Unterputz",1,0),0)*IF($F13="X",1,0) -> 0 | K13: =IF(G13="X",IF($H13="Aufputz",1,0),0)*IF(F13="X",1,0) -> 0 | L13: =IF(G13<>"X",IF($H13="Aufputz",1,0),0)*IF(F13="X",1,0) -> 0 | M13: =IF($G13="-",IF($H13="In Türsprechanlage",1,0),0)*IF($F13="X",1,0) -> 0 | N13: =IF($G13="X",IF($H13="In Türsprechanlage",1,0),0)*IF($F13="X",1,0) -> 0 | O13: =IF($G13="-",IF($H13="Integra",1,0),0)*IF($F13="X",1,0) -> 0 | P13: =IF($G13="X",IF($H13="Integra",1,0),0)*IF($F13="X",1,0) -> 0
B14: =IF('Mein Zuhause'!B10<>"",'Mein Zuhause'!B10&" - "&'Mein Zuhause'!C10,"") ->  | G14: - | H14: - | I14: 0 | J14: 0 | K14: 0 | L14: 0 | M14: 0 | N14: 0 | O14: 0 | P14: 0
B15: =IF('Mein Zuhause'!B11<>"",'Mein Zuhause'!B11&" - "&'Mein Zuhause'!C11,"") ->  | G15: - | H15: - | I15: 0 | J15: 0 | K15: 0 | L15: 0 | M15: 0 | N15: 0 | O15: 0 | P15: 0
B16: =IF('Mein Zuhause'!B12<>"",'Mein Zuhause'!B12&" - "&'Mein Zuhause'!C12,"") ->  | G16: - | H16: - | I16: 0 | J16: 0 | K16: 0 | L16: 0 | M16: 0 | N16: 0 | O16: 0 | P16: 0
B17: =IF('Mein Zuhause'!B13<>"",'Mein Zuhause'!B13&" - "&'Mein Zuhause'!C13,"") ->  | G17: - | H17: - | I17: 0 | J17: 0 | K17: 0 | L17: 0 | M17: 0 | N17: 0 | O17: 0 | P17: 0
B18: =IF('Mein Zuhause'!B14<>"",'Mein Zuhause'!B14&" - "&'Mein Zuhause'!C14,"") ->  | G18: - | H18: - | I18: 0 | J18: 0 | K18: 0 | L18: 0 | M18: 0 | N18: 0 | O18: 0 | P18: 0
B19: =IF('Mein Zuhause'!B15<>"",'Mein Zuhause'!B15&" - "&'Mein Zuhause'!C15,"") ->  | G19: - | H19: - | I19: 0 | J19: 0 | K19: 0 | L19: 0 | M19: 0 | N19: 0 | O19: 0 | P19: 0
B20: =IF('Mein Zuhause'!B16<>"",'Mein Zuhause'!B16&" - "&'Mein Zuhause'!C16,"") ->  | G20: - | H20: - | I20: =IF($G20<>"X",IF($H20="Unterputz",1,0),0)*IF($F20="X",1,0) -> 0 | J20: =IF($G20="X",IF($H20="Unterputz",1,0),0)*IF($F20="X",1,0) -> 0 | K20: =IF(G20="X",IF($H20="Aufputz",1,0),0)*IF(F20="X",1,0) -> 0 | L20: =IF(G20<>"X",IF($H20="Aufputz",1,0),0)*IF(F20="X",1,0) -> 0 | M20: =IF($G20="-",IF($H20="In Türsprechanlage",1,0),0)*IF($F20="X",1,0) -> 0 | N20: =IF($G20="X",IF($H20="In Türsprechanlage",1,0),0)*IF($F20="X",1,0) -> 0 | O20: =IF($G20="-",IF($H20="Integra",1,0),0)*IF($F20="X",1,0) -> 0 | P20: =IF($G20="X",IF($H20="Integra",1,0),0)*IF($F20="X",1,0) -> 0
B21: =IF('Mein Zuhause'!B17<>"",'Mein Zuhause'!B17&" - "&'Mein Zuhause'!C17,"") ->  | G21: - | H21: - | I21: 0 | J21: 0 | K21: 0 | L21: 0 | M21: 0 | N21: 0 | O21: 0 | P21: 0
B22: =IF('Mein Zuhause'!B18<>"",'Mein Zuhause'!B18&" - "&'Mein Zuhause'!C18,"") ->  | G22: - | H22: - | I22: 0 | J22: 0 | K22: 0 | L22: 0 | M22: 0 | N22: 0 | O22: 0 | P22: 0
B23: =IF('Mein Zuhause'!B19<>"",'Mein Zuhause'!B19&" - "&'Mein Zuhause'!C19,"") ->  | G23: - | H23: - | I23: 0 | J23: 0 | K23: 0 | L23: 0 | M23: 0 | N23: 0 | O23: 0 | P23: 0
B24: =IF('Mein Zuhause'!B20<>"",'Mein Zuhause'!B20&" - "&'Mein Zuhause'!C20,"") ->  | G24: - | H24: - | I24: 0 | J24: 0 | K24: 0 | L24: 0 | M24: 0 | N24: 0 | O24: 0 | P24: 0
B25: =IF('Mein Zuhause'!B21<>"",'Mein Zuhause'!B21&" - "&'Mein Zuhause'!C21,"") ->  | G25: - | H25: - | I25: 0 | J25: 0 | K25: 0 | L25: 0 | M25: 0 | N25: 0 | O25: 0 | P25: 0
B26: =IF('Mein Zuhause'!B22<>"",'Mein Zuhause'!B22&" - "&'Mein Zuhause'!C22,"") ->  | G26: - | H26: - | I26: 0 | J26: 0 | K26: 0 | L26: 0 | M26: 0 | N26: 0 | O26: 0 | P26: 0
B27: =IF('Mein Zuhause'!B23<>"",'Mein Zuhause'!B23&" - "&'Mein Zuhause'!C23,"") ->  | G27: - | H27: - | I27: 0 | J27: 0 | K27: 0 | L27: 0 | M27: 0 | N27: 0 | O27: 0 | P27: 0
B28: =IF('Mein Zuhause'!B24<>"",'Mein Zuhause'!B24&" - "&'Mein Zuhause'!C24,"") ->  | G28: - | H28: - | I28: 0 | J28: 0 | K28: 0 | L28: 0 | M28: 0 | N28: 0 | O28: 0 | P28: 0
B29: =IF('Mein Zuhause'!B25<>"",'Mein Zuhause'!B25&" - "&'Mein Zuhause'!C25,"") ->  | G29: - | H29: - | I29: 0 | J29: 0 | K29: 0 | L29: 0 | M29: 0 | N29: 0 | O29: 0 | P29: 0
B30: =IF('Mein Zuhause'!B26<>"",'Mein Zuhause'!B26&" - "&'Mein Zuhause'!C26,"") ->  | G30: - | H30: - | I30: 0 | J30: 0 | K30: 0 | L30: 0 | M30: 0 | N30: 0 | O30: 0 | P30: 0
B31: =IF('Mein Zuhause'!B27<>"",'Mein Zuhause'!B27&" - "&'Mein Zuhause'!C27,"") ->  | G31: - | H31: - | I31: 0 | J31: 0 | K31: 0 | L31: 0 | M31: 0 | N31: 0 | O31: 0 | P31: 0
B32: =IF('Mein Zuhause'!B28<>"",'Mein Zuhause'!B28&" - "&'Mein Zuhause'!C28,"") ->  | G32: - | H32: - | I32: 0 | J32: 0 | K32: 0 | L32: 0 | M32: 0 | N32: 0 | O32: 0 | P32: 0
B33: =IF('Mein Zuhause'!B29<>"",'Mein Zuhause'!B29&" - "&'Mein Zuhause'!C29,"") ->  | G33: - | H33: - | I33: 0 | J33: 0 | K33: 0 | L33: 0 | M33: 0 | N33: 0 | O33: 0 | P33: 0
B34: =IF('Mein Zuhause'!B30<>"",'Mein Zuhause'!B30&" - "&'Mein Zuhause'!C30,"") ->  | G34: - | H34: - | I34: 0 | J34: 0 | K34: 0 | L34: 0 | M34: 0 | N34: 0 | O34: 0 | P34: 0
B35: =IF('Mein Zuhause'!B31<>"",'Mein Zuhause'!B31&" - "&'Mein Zuhause'!C31,"") ->  | G35: - | H35: - | I35: 0 | J35: 0 | K35: 0 | L35: 0 | M35: 0 | N35: 0 | O35: 0 | P35: 0
B36: =IF('Mein Zuhause'!B32<>"",'Mein Zuhause'!B32&" - "&'Mein Zuhause'!C32,"") ->  | G36: - | H36: - | I36: 0 | J36: 0 | K36: 0 | L36: 0 | M36: 0 | N36: 0 | O36: 0 | P36: 0
B37: =IF('Mein Zuhause'!B33<>"",'Mein Zuhause'!B33&" - "&'Mein Zuhause'!C33,"") ->  | G37: - | H37: - | I37: 0 | J37: 0 | K37: 0 | L37: 0 | M37: 0 | N37: 0 | O37: 0 | P37: 0
G38: - | H38: - | I38: 0 | J38: 0 | K38: 0 | L38: 0 | M38: 0 | N38: 0 | O38: 0 | P38: 0
G39: - | H39: - | I39: 0 | J39: 0 | K39: 0 | L39: 0 | M39: 0 | N39: 0 | O39: 0 | P39: 0
G40: - | H40: - | I40: 0 | J40: 0 | K40: 0 | L40: 0 | M40: 0 | N40: 0 | O40: 0 | P40: 0
G41: - | H41: - | I41: 0 | J41: 0 | K41: 0 | L41: 0 | M41: 0 | N41: 0 | O41: 0 | P41: 0
G42: - | H42: - | I42: 0 | J42: 0 | K42: 0 | L42: 0 | M42: 0 | N42: 0 | O42: 0 | P42: 0
G43: - | H43: - | I43: 0 | J43: 0 | K43: 0 | L43: 0 | M43: 0 | N43: 0 | O43: 0 | P43: 0
G44: - | H44: - | I44: 0 | J44: 0 | K44: 0 | L44: 0 | M44: 0 | N44: 0 | O44: 0 | P44: 0
G45: - | H45: - | I45: 0 | J45: 0 | K45: 0 | L45: 0 | M45: 0 | N45: 0 | O45: 0 | P45: 0

Sheet Berechnung Sicherheit (hidden)
A1: Verteileraufteilung | Q1: MODULE | R1: Anz. Kanäle
F3: Zutritt intern | Q3: siehe digitalmodulberechnung
A4: Zuordnung | B4: Summen | C4: =Sicherheit!C11 -> Dome | D4: =Sicherheit!D11 -> Bullet | E4: =Sicherheit!E10 -> Rauchmelder | F4: =Sicherheit!I11 -> up normal | G4: =Sicherheit!J11 -> up mit chip | H4: =Sicherheit!K11 -> ap normal | I4: =Sicherheit!L11 -> ap chip | J4: =Sicherheit!M11 -> Türsprech | K4: =Sicherheit!N11 -> Türsprech mit chip | L4: =Sicherheit!O11 -> integra | M4: =Sicherheit!P11 -> integra mit chip | N4: =Sicherheit!Q11 -> Türsprechanlage | O4: =Sicherheit!R11 -> Elektr. Haustür | P4: =Sicherheit!S11 -> Garagentor
A6: ='Mein Zuhause'!$D9 -> Hauptverteiler | B6: =Stammdaten!$D4 -> Hauptverteiler | C6: =SUMIF($A$6:$A$42,$B6,Sicherheit!C$13:C$45) -> 0 | D6: =SUMIF($A$6:$A$42,$B6,Sicherheit!D$13:D$45) -> 0 | E6: =SUMIF($A$6:$A$42,$B6,Sicherheit!E$13:E$45) -> 0 | F6: =SUMIF($A$6:$A$42,$B6,Sicherheit!I$13:I$45) -> 0 | G6: =SUMIF($A$6:$A$42,$B6,Sicherheit!J$13:J$45) -> 0 | H6: =SUMIF($A$6:$A$42,$B6,Sicherheit!K$13:K$45) -> 0 | I6: =SUMIF($A$6:$A$42,$B6,Sicherheit!L$13:L$45) -> 0 | J6: =SUMIF($A$6:$A$42,$B6,Sicherheit!M$13:M$45) -> 0 | K6: =SUMIF($A$6:$A$42,$B6,Sicherheit!N$13:N$45) -> 0 | L6: =SUMIF($A$6:$A$42,$B6,Sicherheit!O$13:O$45) -> 0 | M6: =SUMIF($A$6:$A$42,$B6,Sicherheit!P$13:P$45) -> 0 | N6: =SUMIF($A$6:$A$42,$B6,Sicherheit!Q$13:Q$45) -> 0 | O6: =SUMIF($A$6:$A$42,$B6,Sicherheit!R$13:R$45) -> 0 | P6: =SUMIF($A$6:$A$42,$B6,Sicherheit!S$13:S$45) -> 0
A7: ='Mein Zuhause'!$D10 -> Hauptverteiler | B7: =Stammdaten!$D5 -> Subverteiler 1 | C7: =SUMIF($A$6:$A$42,$B7,Sicherheit!C$13:C$45) -> 0 | D7: =SUMIF($A$6:$A$42,$B7,Sicherheit!D$13:D$45) -> 0 | E7: =SUMIF($A$6:$A$42,$B7,Sicherheit!E$13:E$45) -> 0 | F7: =SUMIF($A$6:$A$42,$B7,Sicherheit!I$13:I$45) -> 0 | G7: =SUMIF($A$6:$A$42,$B7,Sicherheit!J$13:J$45) -> 0 | H7: =SUMIF($A$6:$A$42,$B7,Sicherheit!K$13:K$45) -> 0 | I7: =SUMIF($A$6:$A$42,$B7,Sicherheit!L$13:L$45) -> 0 | J7: =SUMIF($A$6:$A$42,$B7,Sicherheit!M$13:M$45) -> 0 | K7: =SUMIF($A$6:$A$42,$B7,Sicherheit!N$13:N$45) -> 0 | L7: =SUMIF($A$6:$A$42,$B7,Sicherheit!O$13:O$45) -> 0 | M7: =SUMIF($A$6:$A$42,$B7,Sicherheit!P$13:P$45) -> 0 | N7: =SUMIF($A$6:$A$42,$B7,Sicherheit!Q$13:Q$45) -> 0 | O7: =SUMIF($A$6:$A$42,$B7,Sicherheit!R$13:R$45) -> 0 | P7: =SUMIF($A$6:$A$42,$B7,Sicherheit!S$13:S$45) -> 0
A8: ='Mein Zuhause'!$D11 -> Hauptverteiler | B8: =Stammdaten!$D6 -> Subverteiler 2 | C8: =SUMIF($A$6:$A$42,$B8,Sicherheit!C$13:C$45) -> 0 | D8: =SUMIF($A$6:$A$42,$B8,Sicherheit!D$13:D$45) -> 0 | E8: =SUMIF($A$6:$A$42,$B8,Sicherheit!E$13:E$45) -> 0 | F8: =SUMIF($A$6:$A$42,$B8,Sicherheit!I$13:I$45) -> 0 | G8: =SUMIF($A$6:$A$42,$B8,Sicherheit!J$13:J$45) -> 0 | H8: =SUMIF($A$6:$A$42,$B8,Sicherheit!K$13:K$45) -> 0 | I8: =SUMIF($A$6:$A$42,$B8,Sicherheit!L$13:L$45) -> 0 | J8: =SUMIF($A$6:$A$42,$B8,Sicherheit!M$13:M$45) -> 0 | K8: =SUMIF($A$6:$A$42,$B8,Sicherheit!N$13:N$45) -> 0 | L8: =SUMIF($A$6:$A$42,$B8,Sicherheit!O$13:O$45) -> 0 | M8: =SUMIF($A$6:$A$42,$B8,Sicherheit!P$13:P$45) -> 0 | N8: =SUMIF($A$6:$A$42,$B8,Sicherheit!Q$13:Q$45) -> 0 | O8: =SUMIF($A$6:$A$42,$B8,Sicherheit!R$13:R$45) -> 0 | P8: =SUMIF($A$6:$A$42,$B8,Sicherheit!S$13:S$45) -> 0 | Q8: Rest wird nicht aufgeteilt
A9: ='Mein Zuhause'!$D12 -> Hauptverteiler | B9: =Stammdaten!$D7 -> Subverteiler 3 | C9: =SUMIF($A$6:$A$42,$B9,Sicherheit!C$13:C$45) -> 0 | D9: =SUMIF($A$6:$A$42,$B9,Sicherheit!D$13:D$45) -> 0 | E9: =SUMIF($A$6:$A$42,$B9,Sicherheit!E$13:E$45) -> 0 | F9: =SUMIF($A$6:$A$42,$B9,Sicherheit!I$13:I$45) -> 0 | G9: =SUMIF($A$6:$A$42,$B9,Sicherheit!J$13:J$45) -> 0 | H9: =SUMIF($A$6:$A$42,$B9,Sicherheit!K$13:K$45) -> 0 | I9: =SUMIF($A$6:$A$42,$B9,Sicherheit!L$13:L$45) -> 0 | J9: =SUMIF($A$6:$A$42,$B9,Sicherheit!M$13:M$45) -> 0 | K9: =SUMIF($A$6:$A$42,$B9,Sicherheit!N$13:N$45) -> 0 | L9: =SUMIF($A$6:$A$42,$B9,Sicherheit!O$13:O$45) -> 0 | M9: =SUMIF($A$6:$A$42,$B9,Sicherheit!P$13:P$45) -> 0 | N9: =SUMIF($A$6:$A$42,$B9,Sicherheit!Q$13:Q$45) -> 0 | O9: =SUMIF($A$6:$A$42,$B9,Sicherheit!R$13:R$45) -> 0 | P9: =SUMIF($A$6:$A$42,$B9,Sicherheit!S$13:S$45) -> 0
A10: ='Mein Zuhause'!$D13 -> Hauptverteiler | B10: =Stammdaten!$D8 -> Subverteiler 4 | C10: =SUMIF($A$6:$A$42,$B10,Sicherheit!C$13:C$45) -> 0 | D10: =SUMIF($A$6:$A$42,$B10,Sicherheit!D$13:D$45) -> 0 | E10: =SUMIF($A$6:$A$42,$B10,Sicherheit!E$13:E$45) -> 0 | F10: =SUMIF($A$6:$A$42,$B10,Sicherheit!I$13:I$45) -> 0 | G10: =SUMIF($A$6:$A$42,$B10,Sicherheit!J$13:J$45) -> 0 | H10: =SUMIF($A$6:$A$42,$B10,Sicherheit!K$13:K$45) -> 0 | I10: =SUMIF($A$6:$A$42,$B10,Sicherheit!L$13:L$45) -> 0 | J10: =SUMIF($A$6:$A$42,$B10,Sicherheit!M$13:M$45) -> 0 | K10: =SUMIF($A$6:$A$42,$B10,Sicherheit!N$13:N$45) -> 0 | L10: =SUMIF($A$6:$A$42,$B10,Sicherheit!O$13:O$45) -> 0 | M10: =SUMIF($A$6:$A$42,$B10,Sicherheit!P$13:P$45) -> 0 | N10: =SUMIF($A$6:$A$42,$B10,Sicherheit!Q$13:Q$45) -> 0 | O10: =SUMIF($A$6:$A$42,$B10,Sicherheit!R$13:R$45) -> 0 | P10: =SUMIF($A$6:$A$42,$B10,Sicherheit!S$13:S$45) -> 0
A11: ='Mein Zuhause'!$D14 -> Hauptverteiler
A12: ='Mein Zuhause'!$D15 -> Hauptverteiler
A13: ='Mein Zuhause'!$D16 -> Hauptverteiler
A14: ='Mein Zuhause'!$D17 -> Hauptverteiler
A15: ='Mein Zuhause'!$D18 -> Hauptverteiler
A16: ='Mein Zuhause'!$D19 -> Hauptverteiler
A17: ='Mein Zuhause'!$D20 -> Hauptverteiler
A18: ='Mein Zuhause'!$D21 -> Hauptverteiler
A19: ='Mein Zuhause'!$D22 -> Hauptverteiler
A20: ='Mein Zuhause'!$D23 -> Hauptverteiler
A21: ='Mein Zuhause'!$D24 -> Hauptverteiler
A22: ='Mein Zuhause'!$D25 -> Hauptverteiler
A23: ='Mein Zuhause'!$D26 -> Hauptverteiler
A24: ='Mein Zuhause'!$D27 -> Hauptverteiler
A25: ='Mein Zuhause'!$D28 -> Hauptverteiler
A26: ='Mein Zuhause'!$D29 -> Hauptverteiler
A27: ='Mein Zuhause'!$D30 -> Hauptverteiler
A28: ='Mein Zuhause'!$D31 -> Hauptverteiler
A29: ='Mein Zuhause'!$D32 -> Hauptverteiler
A30: ='Mein Zuhause'!$D33 -> Hauptverteiler
A31: ='Mein Zuhause'!$D34 -> Hauptverteiler
A32: ='Mein Zuhause'!$D35 -> Hauptverteiler
A33: ='Mein Zuhause'!$D36 -> Hauptverteiler
A34: ='Mein Zuhause'!$D37 -> Hauptverteiler
A35: ='Mein Zuhause'!$D38 -> Hauptverteiler
A36: ='Mein Zuhause'!$D39 -> Hauptverteiler
A37: ='Mein Zuhause'!$D40 -> Hauptverteiler
A38: ='Mein Zuhause'!$D41 -> Hauptverteiler
A39: ='Mein Zuhause'!$D42 -> Hauptverteiler
A40: ='Mein Zuhause'!$D43 -> Hauptverteiler
A41: ='Mein Zuhause'!$D44 -> Hauptverteiler
A42: ='Mein Zuhause'!$D45 -> Hauptverteiler

Sheet Komfort
B2: Komfort
B4: Heute versprechen eine Reihe von meist elektronischen Helfern mehr Sicherheit in Ihrem Zuhause: Ein Rauchmelder in der Küche, eine Alarmanlage oder eine Kamera an der Eingangstür. Alles für sich nützlich und sinnvoll. Spannender wird es, wenn die Vorteile aller Teilsysteme in einem Smart Home System zusammengefasst werden.
E6: fertig!
B9: Raum | C9: Bad/WC Lüfter | D9: Steckdosen geschalten | E9: Badheizkörper elektrisch | F9: Zusätzliche Temperatur- messung | G9: Szenentaster
B10: Summe | C10: =SUM(C11:C35) -> 0 | D10: =SUM(D11:D35) -> 0 | E10: 0 | F10: 0 | G10: 0
B11: =IF('Mein Zuhause'!B9<>"",'Mein Zuhause'!B9&" - "&'Mein Zuhause'!C9,"") -> 
B12: =IF('Mein Zuhause'!B10<>"",'Mein Zuhause'!B10&" - "&'Mein Zuhause'!C10,"") -> 
B13: =IF('Mein Zuhause'!B11<>"",'Mein Zuhause'!B11&" - "&'Mein Zuhause'!C11,"") -> 
B14: =IF('Mein Zuhause'!B12<>"",'Mein Zuhause'!B12&" - "&'Mein Zuhause'!C12,"") -> 
B15: =IF('Mein Zuhause'!B13<>"",'Mein Zuhause'!B13&" - "&'Mein Zuhause'!C13,"") -> 
B16: =IF('Mein Zuhause'!B14<>"",'Mein Zuhause'!B14&" - "&'Mein Zuhause'!C14,"") -> 
B17: =IF('Mein Zuhause'!B15<>"",'Mein Zuhause'!B15&" - "&'Mein Zuhause'!C15,"") -> 
B18: =IF('Mein Zuhause'!B16<>"",'Mein Zuhause'!B16&" - "&'Mein Zuhause'!C16,"") -> 
B19: =IF('Mein Zuhause'!B17<>"",'Mein Zuhause'!B17&" - "&'Mein Zuhause'!C17,"") -> 
B20: =IF('Mein Zuhause'!B18<>"",'Mein Zuhause'!B18&" - "&'Mein Zuhause'!C18,"") -> 
B21: =IF('Mein Zuhause'!B19<>"",'Mein Zuhause'!B19&" - "&'Mein Zuhause'!C19,"") -> 
B22: =IF('Mein Zuhause'!B20<>"",'Mein Zuhause'!B20&" - "&'Mein Zuhause'!C20,"") -> 
B23: =IF('Mein Zuhause'!B21<>"",'Mein Zuhause'!B21&" - "&'Mein Zuhause'!C21,"") -> 
B24: =IF('Mein Zuhause'!B22<>"",'Mein Zuhause'!B22&" - "&'Mein Zuhause'!C22,"") -> 
B25: =IF('Mein Zuhause'!B23<>"",'Mein Zuhause'!B23&" - "&'Mein Zuhause'!C23,"") -> 
B26: =IF('Mein Zuhause'!B24<>"",'Mein Zuhause'!B24&" - "&'Mein Zuhause'!C24,"") -> 
B27: =IF('Mein Zuhause'!B25<>"",'Mein Zuhause'!B25&" - "&'Mein Zuhause'!C25,"") -> 
B28: =IF('Mein Zuhause'!B26<>"",'Mein Zuhause'!B26&" - "&'Mein Zuhause'!C26,"") -> 
B29: =IF('Mein Zuhause'!B27<>"",'Mein Zuhause'!B27&" - "&'Mein Zuhause'!C27,"") -> 
B30: =IF('Mein Zuhause'!B28<>"",'Mein Zuhause'!B28&" - "&'Mein Zuhause'!C28,"") -> 
B31: =IF('Mein Zuhause'!B29<>"",'Mein Zuhause'!B29&" - "&'Mein Zuhause'!C29,"") -> 
B32: =IF('Mein Zuhause'!B30<>"",'Mein Zuhause'!B30&" - "&'Mein Zuhause'!C30,"") -> 
B33: =IF('Mein Zuhause'!B31<>"",'Mein Zuhause'!B31&" - "&'Mein Zuhause'!C31,"") -> 
B34: =IF('Mein Zuhause'!B32<>"",'Mein Zuhause'!B32&" - "&'Mein Zuhause'!C32,"") -> 
B35: =IF('Mein Zuhause'!B33<>"",'Mein Zuhause'!B33&" - "&'Mein Zuhause'!C33,"") -> 
B36: =IF('Mein Zuhause'!B34<>"",'Mein Zuhause'!B34&" - "&'Mein Zuhause'!C34,"") -> 
B37: =IF('Mein Zuhause'!B35<>"",'Mein Zuhause'!B35&" - "&'Mein Zuhause'!C35,"") -> 
B38: =IF('Mein Zuhause'!B36<>"",'Mein Zuhause'!B36&" - "&'Mein Zuhause'!C36,"") -> 
B39: =IF('Mein Zuhause'!B37<>"",'Mein Zuhause'!B37&" - "&'Mein Zuhause'!C37,"") -> 
B40: =IF('Mein Zuhause'!B38<>"",'Mein Zuhause'!B38&" - "&'Mein Zuhause'!C38,"") -> 
B41: =IF('Mein Zuhause'!B39<>"",'Mein Zuhause'!B39&" - "&'Mein Zuhause'!C39,"") -> 
B42: =IF('Mein Zuhause'!B40<>"",'Mein Zuhause'!B40&" - "&'Mein Zuhause'!C40,"") -> 
B43: =IF('Mein Zuhause'!B41<>"",'Mein Zuhause'!B41&" - "&'Mein Zuhause'!C41,"") -> 
B44: =IF('Mein Zuhause'!B42<>"",'Mein Zuhause'!B42&" - "&'Mein Zuhause'!C42,"") -> 

Sheet Berechnung Komfort (hidden)
A1: Verteileraufteilung | H1: MODULE | I1: Anz. Kanäle
H2: siehe digitalmodulberechnung
A4: Zuordnung | B4: Summen | C4: =Komfort!C9 -> Bad/WC Lüfter | D4: =Komfort!D9 -> Steckdosen geschalten | E4: =Komfort!E9 -> Badheizkörper elektrisch | F4: =Komfort!F9 -> Zusätzliche Temperatur- messung | G4: =Komfort!G9 -> Szenentaster
A6: ='Mein Zuhause'!$D9 -> Hauptverteiler | B6: =Stammdaten!$D4 -> Hauptverteiler | C6: =SUMIF($A$6:$A$42,$B6,Komfort!C$11:C$45) -> 0 | D6: =SUMIF($A$6:$A$42,$B6,Komfort!D$11:D$45) -> 0 | E6: =SUMIF($A$6:$A$42,$B6,Komfort!E$11:E$45) -> 0 | F6: =SUMIF($A$6:$A$42,$B6,Komfort!F$11:F$45) -> 0 | G6: =SUMIF($A$6:$A$42,$B6,Komfort!$G$11:$G$44) -> 0
A7: ='Mein Zuhause'!$D10 -> Hauptverteiler | B7: =Stammdaten!$D5 -> Subverteiler 1 | C7: =SUMIF($A$6:$A$42,$B7,Komfort!C$11:C$45) -> 0 | D7: =SUMIF($A$6:$A$42,$B7,Komfort!D$11:D$45) -> 0 | E7: =SUMIF($A$6:$A$42,$B7,Komfort!E$11:E$45) -> 0 | F7: =SUMIF($A$6:$A$42,$B7,Komfort!F$11:F$45) -> 0 | G7: =SUMIF($A$6:$A$42,$B7,Komfort!$G$11:$G$44) -> 0
A8: ='Mein Zuhause'!$D11 -> Hauptverteiler | B8: =Stammdaten!$D6 -> Subverteiler 2 | C8: =SUMIF($A$6:$A$42,$B8,Komfort!C$11:C$45) -> 0 | D8: =SUMIF($A$6:$A$42,$B8,Komfort!D$11:D$45) -> 0 | E8: =SUMIF($A$6:$A$42,$B8,Komfort!E$11:E$45) -> 0 | F8: =SUMIF($A$6:$A$42,$B8,Komfort!F$11:F$45) -> 0 | G8: =SUMIF($A$6:$A$42,$B8,Komfort!$G$11:$G$44) -> 0
A9: ='Mein Zuhause'!$D12 -> Hauptverteiler | B9: =Stammdaten!$D7 -> Subverteiler 3 | C9: =SUMIF($A$6:$A$42,$B9,Komfort!C$11:C$45) -> 0 | D9: =SUMIF($A$6:$A$42,$B9,Komfort!D$11:D$45) -> 0 | E9: =SUMIF($A$6:$A$42,$B9,Komfort!E$11:E$45) -> 0 | F9: =SUMIF($A$6:$A$42,$B9,Komfort!F$11:F$45) -> 0 | G9: =SUMIF($A$6:$A$42,$B9,Komfort!$G$11:$G$44) -> 0
A10: ='Mein Zuhause'!$D13 -> Hauptverteiler | B10: =Stammdaten!$D8 -> Subverteiler 4 | C10: =SUMIF($A$6:$A$42,$B10,Komfort!C$11:C$45) -> 0 | D10: =SUMIF($A$6:$A$42,$B10,Komfort!D$11:D$45) -> 0 | E10: =SUMIF($A$6:$A$42,$B10,Komfort!E$11:E$45) -> 0 | F10: =SUMIF($A$6:$A$42,$B10,Komfort!F$11:F$45) -> 0 | G10: =SUMIF($A$6:$A$42,$B10,Komfort!$G$11:$G$44) -> 0
A11: ='Mein Zuhause'!$D14 -> Hauptverteiler
A12: ='Mein Zuhause'!$D15 -> Hauptverteiler
A13: ='Mein Zuhause'!$D16 -> Hauptverteiler
A14: ='Mein Zuhause'!$D17 -> Hauptverteiler
A15: ='Mein Zuhause'!$D18 -> Hauptverteiler
A16: ='Mein Zuhause'!$D19 -> Hauptverteiler
A17: ='Mein Zuhause'!$D20 -> Hauptverteiler
A18: ='Mein Zuhause'!$D21 -> Hauptverteiler
A19: ='Mein Zuhause'!$D22 -> Hauptverteiler
A20: ='Mein Zuhause'!$D23 -> Hauptverteiler
A21: ='Mein Zuhause'!$D24 -> Hauptverteiler
A22: ='Mein Zuhause'!$D25 -> Hauptverteiler
A23: ='Mein Zuhause'!$D26 -> Hauptverteiler
A24: ='Mein Zuhause'!$D27 -> Hauptverteiler
A25: ='Mein Zuhause'!$D28 -> Hauptverteiler
A26: ='Mein Zuhause'!$D29 -> Hauptverteiler
A27: ='Mein Zuhause'!$D30 -> Hauptverteiler
A28: ='Mein Zuhause'!$D31 -> Hauptverteiler
A29: ='Mein Zuhause'!$D32 -> Hauptverteiler
A30: ='Mein Zuhause'!$D33 -> Hauptverteiler
A31: ='Mein Zuhause'!$D34 -> Hauptverteiler
A32: ='Mein Zuhause'!$D35 -> Hauptverteiler
A33: ='Mein Zuhause'!$D36 -> Hauptverteiler
A34: ='Mein Zuhause'!$D37 -> Hauptverteiler
A35: ='Mein Zuhause'!$D38 -> Hauptverteiler
A36: ='Mein Zuhause'!$D39 -> Hauptverteiler
A37: ='Mein Zuhause'!$D40 -> Hauptverteiler
A38: ='Mein Zuhause'!$D41 -> Hauptverteiler
A39: ='Mein Zuhause'!$D42 -> Hauptverteiler
A40: ='Mein Zuhause'!$D43 -> Hauptverteiler
A41: ='Mein Zuhause'!$D44 -> Hauptverteiler
A42: ='Mein Zuhause'!$D45 -> Hauptverteiler

Sheet Berechnung AnalogDigitalmodule (hidden)
A1: DIGITAL IN
A2: Verteileraufteilung
L3: =Stammdaten!G20 -> HC-D1180
B4: Sicherheit | E4: Beschattung | G4: Beleuchtung BWMs | I4: Komfort | J4: Multimedia | L4: =Stammdaten!I20 -> 8
A5: Summen | B5: =Sicherheit!E10 -> Rauchmelder | C5: =Sicherheit!R11 -> Elektr. Haustür | D5: =Sicherheit!S11 -> Garagentor | E5: ='Beschatttung und Fenster'!I12 -> Fensterkontakt | F5: ='Beschatttung und Fenster'!H12 -> Velux | G5: =Beleuchtung!J12 -> 24V | H5: =Beleuchtung!K12 -> 230V | I5: =Komfort!G9 -> Szenentaster | J5: =Mulitmedia!E12 -> Taster | L5: =Stammdaten!H20 -> 2.6 | M5: TEs
L6: =SUM(L7:L11) -> 0
A7: =Stammdaten!$D$4 -> Hauptverteiler | B7: ='Berechnung Sicherheit'!E6 -> 0 | C7: ='Berechnung Sicherheit'!O6 -> 0 | D7: ='Berechnung Sicherheit'!P6 -> 0 | E7: ='Berechnung Beschattung'!I8 -> 0 | F7: ='Berechnung Beschattung'!H8*2 -> 0 | G7: ='Berechnung Beleuchtung'!H8 -> 0 | H7: ='Berechnung Beleuchtung'!I8 -> 0 | I7: ='Berechnung Komfort'!G6 -> 0 | J7: ='Berechnung Multi'!H6*4 -> 0 | L7: =ROUNDUP(SUM(B7:J7)/$L$4,0) -> 0 | M7: =L7*$L$5 -> 0
A8: =Stammdaten!$D$5 -> Subverteiler 1 | B8: ='Berechnung Sicherheit'!E7 -> 0 | C8: ='Berechnung Sicherheit'!O7 -> 0 | D8: ='Berechnung Sicherheit'!P7 -> 0 | E8: ='Berechnung Beschattung'!I9 -> 0 | F8: ='Berechnung Beschattung'!H9*2 -> 0 | G8: ='Berechnung Beleuchtung'!H9 -> 0 | H8: ='Berechnung Beleuchtung'!I9 -> 0 | I8: ='Berechnung Komfort'!G7 -> 0 | J8: ='Berechnung Multi'!H7*4 -> 0 | L8: =ROUNDUP(SUM(B8:J8)/$L$4,0) -> 0 | M8: =L8*$L$5 -> 0
A9: =Stammdaten!$D$6 -> Subverteiler 2 | B9: ='Berechnung Sicherheit'!E8 -> 0 | C9: ='Berechnung Sicherheit'!O8 -> 0 | D9: ='Berechnung Sicherheit'!P8 -> 0 | E9: ='Berechnung Beschattung'!I10 -> 0 | F9: ='Berechnung Beschattung'!H10*2 -> 0 | G9: ='Berechnung Beleuchtung'!H10 -> 0 | H9: ='Berechnung Beleuchtung'!I10 -> 0 | I9: ='Berechnung Komfort'!G8 -> 0 | J9: ='Berechnung Multi'!H8*4 -> 0 | L9: 0 | M9: 0
A10: =Stammdaten!$D$7 -> Subverteiler 3 | B10: ='Berechnung Sicherheit'!E9 -> 0 | C10: ='Berechnung Sicherheit'!O9 -> 0 | D10: ='Berechnung Sicherheit'!P9 -> 0 | E10: ='Berechnung Beschattung'!I11 -> 0 | F10: ='Berechnung Beschattung'!H11*2 -> 0 | G10: ='Berechnung Beleuchtung'!H11 -> 0 | H10: ='Berechnung Beleuchtung'!I11 -> 0 | I10: ='Berechnung Komfort'!G9 -> 0 | J10: ='Berechnung Multi'!H9*4 -> 0 | L10: 0 | M10: 0
A11: =Stammdaten!$D$8 -> Subverteiler 4 | B11: ='Berechnung Sicherheit'!E10 -> 0 | C11: ='Berechnung Sicherheit'!O10 -> 0 | D11: ='Berechnung Sicherheit'!P10 -> 0 | E11: ='Berechnung Beschattung'!I12 -> 0 | F11: ='Berechnung Beschattung'!H12*2 -> 0 | G11: ='Berechnung Beleuchtung'!H12 -> 0 | H11: ='Berechnung Beleuchtung'!I12 -> 0 | I11: ='Berechnung Komfort'!G10 -> 0 | J11: ='Berechnung Multi'!H10*4 -> 0 | L11: 0 | M11: 0
A18: DIGITAL OUT
A19: Verteileraufteilung
L20: =Stammdaten!G21 -> HC-D1208
B21: Sicherheit | E21: Komfort | L21: =Stammdaten!I21 -> 8
A22: Summen | B22: =Sicherheit!E10 -> Rauchmelder | C22: =Sicherheit!R11 -> Elektr. Haustür | D22: =Sicherheit!S11 -> Garagentor | E22: ='Berechnung Komfort'!C4 -> Bad/WC Lüfter | F22: ='Berechnung Komfort'!D4 -> Steckdosen geschalten | G22: ='Berechnung Komfort'!E4 -> Badheizkörper elektrisch | L22: =Stammdaten!H21 -> 2.6
L23: =SUM(L24:L28) -> 0
A24: =Stammdaten!$D$4 -> Hauptverteiler | C24: ='Berechnung Sicherheit'!O6 -> 0 | D24: ='Berechnung Sicherheit'!P6*2 -> 0 | E24: ='Berechnung Komfort'!C6 -> 0 | F24: ='Berechnung Komfort'!D6 -> 0 | G24: ='Berechnung Komfort'!E6 -> 0 | L24: =ROUNDUP(SUM(B24:J24)/$L$21,0) -> 0 | M24: =L24*$L$22 -> 0
A25: =Stammdaten!$D$5 -> Subverteiler 1 | C25: ='Berechnung Sicherheit'!O7 -> 0 | D25: ='Berechnung Sicherheit'!P7*2 -> 0 | E25: ='Berechnung Komfort'!C7 -> 0 | F25: ='Berechnung Komfort'!D7 -> 0 | G25: ='Berechnung Komfort'!E7 -> 0 | L25: =ROUNDUP(SUM(B25:J25)/$L$21,0) -> 0 | M25: =L25*$L$22 -> 0
A26: =Stammdaten!$D$6 -> Subverteiler 2 | C26: ='Berechnung Sicherheit'!O8 -> 0 | D26: ='Berechnung Sicherheit'!P8*2 -> 0 | E26: ='Berechnung Komfort'!C8 -> 0 | F26: ='Berechnung Komfort'!D8 -> 0 | G26: ='Berechnung Komfort'!E8 -> 0 | L26: 0 | M26: 0
A27: =Stammdaten!$D$7 -> Subverteiler 3 | C27: ='Berechnung Sicherheit'!O9 -> 0 | D27: ='Berechnung Sicherheit'!P9*2 -> 0 | E27: ='Berechnung Komfort'!C9 -> 0 | F27: ='Berechnung Komfort'!D9 -> 0 | G27: ='Berechnung Komfort'!E9 -> 0 | L27: 0 | M27: 0
A28: =Stammdaten!$D$8 -> Subverteiler 4 | C28: ='Berechnung Sicherheit'!O10 -> 0 | D28: ='Berechnung Sicherheit'!P10*2 -> 0 | E28: ='Berechnung Komfort'!C10 -> 0 | F28: ='Berechnung Komfort'!D10 -> 0 | G28: ='Berechnung Komfort'!E10 -> 0 | L28: 0 | M28: 0
A32: PT 1000
A33: Verteileraufteilung | L33: PT1000
L34: =Stammdaten!G24 -> HC-A1240
B35: Komfort | L35: =Stammdaten!I24 -> 4
A36: Summen | B36: =Komfort!F9 -> Zusätzliche Temperatur- messung | L36: =Stammdaten!H24 -> 2.6
L37: =SUM(L38:L42) -> 0
A38: =Stammdaten!$D$4 -> Hauptverteiler | B38: ='Berechnung Komfort'!F6 -> 0 | L38: =ROUNDUP(SUM(B38:J38)/$L$21,0) -> 0 | M38: =L38*$L$36 -> 0
A39: =Stammdaten!$D$5 -> Subverteiler 1 | B39: ='Berechnung Komfort'!F7 -> 0 | L39: =ROUNDUP(SUM(B39:J39)/$L$21,0) -> 0 | M39: =L39*$L$36 -> 0
A40: =Stammdaten!$D$6 -> Subverteiler 2 | B40: ='Berechnung Komfort'!F8 -> 0 | L40: 0 | M40: 0
A41: =Stammdaten!$D$7 -> Subverteiler 3 | B41: ='Berechnung Komfort'!F9 -> 0 | L41: 0 | M41: 0
A42: =Stammdaten!$D$8 -> Subverteiler 4 | B42: ='Berechnung Komfort'!F10 -> 0 | L42: 0 | M42: 0

Sheet Ihr evon Smart Home
B2: ="Zusammenfassung - " &Start!$C$19 -> Zusammenfassung -
B3: ="für "&Start!$C$20 -> für
B5: Wir sehen Smart Home als Herausforderung, die zwei Aufgaben erfüllen muss: Smart Home muss Ihr Leben einfacher machen und Smart Home darf nicht aufdringlich sein. Beides erreichen wir durch die Kombination moderner, vielfach erprobter Hardware und unserer App, die es Ihnen ganz ohne Programmierung ermöglicht, Ihr Zuhause an Ihre Wünsche anzupassen.
B8: Artikel | E8: Art.Nr. | F8: Anzahl | G8: Korrektur | H8: Preis | I8: Gesamt
B9: Controller
B10: evon Smart Home Controller mit SD-Karte (iX800SD-01) | E10: HC-iX800SD | F10: =IF(SUM(Mulitmedia!C13,Mulitmedia!D13*2)<5,1,0)+G10 -> 1 | H10: 594 | I10: =IF(F10>0,H10*F10,"") -> 594
B11: evon Smart Home Controller mit SD-Karte (iX840SD-00) | E11: HC-iX840SD | F11: =IF(SUM(Mulitmedia!C13,Mulitmedia!D13*2)>5,1,0)+G11 -> 0 | H11: 930 | I11: =IF(F11>0,H11*F11,"") -> 
B12: Beschattungsmodule | I12: =IF(F12>0,H12*F12,"") -> 
B13: Beschattung Standard (Blind 1144) | E13: HC-B1144 | F13: ='Berechnung Beschattung'!P7+G13 -> 0 | H13: 216
B14: Beschattung mit Wendemotor (Blind 1244) | E14: HC-B1244 | F14: ='Berechnung Beschattung'!K7+G14 -> 0 | H14: 216
B15: Beschattung für Schlotterer (Blind 1344) | E15: HC-B1344 | F15: ='Berechnung Beschattung'!L7+G15 -> 0 | H15: 222
B16: Lichtmodule
B17: Lichtkreis mit externen Lastrelais (Light 1144) | E17: HC-L1144 | F17: ='Berechnung Beleuchtung'!J7+G17 -> 0 | H17: 216
B18: Lichtkreis mit integriertem Lastrelais (Light 1244) | E18: HC-L1244 | F18: ='Berechnung Beleuchtung'!K7+G18 -> 0 | H18: 255
B19: Lichtkreis dimmbar 0-10V 2 Kanal (Light 1424) | E19: HC-L1424 | F19: =ROUNDUP('Berechnung Beleuchtung'!L7,0)+G19 -> 0 | H19: 255
B20: Lichtkreis dimmbar 0-10V 4 Kanal (Light 1544) | E20: HC-L1544 | F20: =ROUNDUP('Berechnung Beleuchtung'!M7,0)+G20 -> 0 | H20: 312
B21: Lichtkreis LED 4 Kanal weiss / 1 Kanal RGBW (Light 1644) | E21: HC-L1644 | F21: ='Berechnung Beleuchtung'!O7+G21 -> 0 | H21: 369
B22: Lichtkreis DALI 2 Kanal - pro Linie 16 DALI Leuchten (Light 1842) | E22: HC-L1842 | F22: ='Berechnung Beleuchtung'!N7+G22 -> 0 | H22: 423
B23: Einzelraumregelmodule
B24: Heiz-/Kühlkreis für Raumbediengerät C110X | E24: HC-C1144 | F24: =ROUNDUP(IF(Raumregelungen!C12="nur Temperatursensor",0,'Berechnung Raumreg'!G7),0)+G24 -> 0 | H24: 279
B25: Heiz-/Kühlkreis für Raumtemperatursensor C1010 | E25: HC-C1244 | F25: =ROUNDUP(IF(Raumregelungen!C12="nur Temperatursensor",'Berechnung Raumreg'!G7,0),0)+G25 -> 0 | H25: 306
B26: Raumbediengeräte
B27: Raumbediengerät C110X | E27: HC-C110X | F27: =IF(Raumregelungen!C12="Eco",Raumregelungen!D12,0)+G27 -> 0 | H27: 93
B28: Sensor Touch Raumbediengerät | E28: HC-C1109 | F28: =IF(Raumregelungen!C12="Touch",Raumregelungen!D12,0)+G28 -> 0 | H28: 150
B29: Raumtemperatursensor PT1000 C1010 | E29: HC-C1010 | F29: =IF(Raumregelungen!C12="nur Temperatursensor",Raumregelungen!D12,0)+G29 -> 0 | H29: 33
B30: Digitalmodule
B31: Digitaleingang (Digital 1180) | E31: HC-D1180 | F31: ='Berechnung AnalogDigitalmodule'!L6+'Ihr evon Smart Home'!G31 -> 0 | H31: 222
B32: Digitalausgang (Digital 1208) | E32: HC-D1208 | F32: ='Berechnung AnalogDigitalmodule'!L23+'Ihr evon Smart Home'!G32 -> 0 | H32: 222
B33: Digital Ein/Ausgang (Digital 1344) | E33: HC-D1344 | F33: =G33 -> 0 | H33: 222
B34: Analogmodule
B35: Analogein-/ausgang 0-10V (Analog 1144) | E35: HC-A1144 | F35: =G35 -> 0 | H35: 273
B36: Analogeingang PT1000 (Analog 1240) | E36: HC-A1240 | F36: ='Berechnung AnalogDigitalmodule'!L37+G36 -> 0 | H36: 255
B37: Analogeingang PT1000 od. KTY (Analog 1380) | E37: HC-A1380 | F37: =G37 -> 0 | H37: 363
B38: Technologiemodule
B39: Soundmodul 4 x 10W | E39: HC-TS410 | F39: =ROUNDUP(SUM(Mulitmedia!C13,Mulitmedia!D13*2)/4,0)+G39 -> 0 | H39: 660
B40: Auxuiliary 2 x RS485 Erweiterung | E40: HC-TA200 | F40: =IF(SUM(F64:F71)>0,1,0)+G40 -> 0 | H40: 288
B41: Erweiterungsmodul techCom abgehend | E41: HC-S2200 | F41: =G41 -> 0 | H41: 72
B42: Erweiterungsmodul techCom eingehend | E42: HC-S2300 | F42: =G42 -> 0 | H42: 72
B43: Verbindungskabel techCOM 1,5m | E43: HC-S2400 | F43: =G43 -> 0 | H43: 21
B44: Netzwerk - Schnittstellenerweiterung 1fach | E44: HC-TE100 | F44: =G44 -> 0 | H44: 177
B45: Systemmodule
B46: 24V Schaltnetzteil 100W | E46: HC-S100W | F46: =1+G46 -> 1 | H46: 120 | I46: 120
B47: Busabschluss smartCOM | E47: HC-S1100 | F47: =SUM('Berechnung TEs'!G3:G7)+G47 -> 2 | H47: 42 | I47: 84
B48: Busumsetzer smartCOM | E48: HC-S1200 | F48: =SUM('Berechnung TEs'!D3:D7)+G48 -> 0 | H48: 42
F49: Summe Module | I49: =SUM(I10:I48) -> 798
B51: Artikel | E51: Art.Nr. | F51: Menge | H51: Preis | I51: Summe
B52: Erweiterungen
B53: evon Smart Home Wetterstation | E53: HC-WSLRW | F53: ='Beschatttung und Fenster'!C9+G53 -> 0 | H53: 387 | I53: =IF(F53>0,H53*F53,"") -> 
B54: evon Smart Home Türsprechanlage | E54: HC-SiPB10 | F54: =Sicherheit!Q12+G54 -> 0 | H54: 1149 | I54: =IF(F54>0,H54*F54,"") -> 
B55: evon Smart Home IP Kamera Bullet | E55: HC-CAM12 | F55: =Sicherheit!D12+G55 -> 0 | H55: 234
B56: evon Smart Home AP Gehäuse für Bullet Camera | E56: HC-BCAMZ01 | F56: =F55+G56 -> 0 | H56: 30
B57: evon Smart Home IP Kamera Dome | E57: HC-DCAM20 | F57: =Sicherheit!C12 -> 0 | H57: 234
B58: evon Smart Home AP Gehäuse für Dome Camera | E58: HC-DCAMZ01 | F58: =F57+G58 -> 0 | H58: 30 | I58: =IF(F58>0,H58*F58,"") -> 
B59: U::LUX Schalter mit Datendose | E59: HC-ULUX | F59: =G59 -> 0 | H59: 297
B60: U::LUX Schalter Erweiterung Temperatur | E60: HC-ULUXEXT1 | F60: =G60 -> 0 | H60: 51
B61: U::LUX Schalter Erweiterung Temperatur + Feuchte | E61: HC-ULUXEXT2 | F61: =G61 -> 0 | H61: 66
B62: U::LUX Schalter Erweiterung Temperatur + Feuchte + BWM | E62: HC-ULUXEXT3 | F62: =G62 -> 0 | H62: 90
B63: U::LUX Schalter Erweiterung Temperatur + Feuchte + CO2 Konzentration | E63: HC-ULUXEXT4 | F63: =G63 -> 0 | H63: 189
B64: Fingerprint Zutritt AP | E64: HC-KEYAP | F64: =Sicherheit!K12+G64 -> 0 | H64: 375
B65: Fingerprint Zutritt AP RFID | E65: HC-KEYAPR | F65: =Sicherheit!L12+G65 -> 0 | H65: 549
B66: Fingerprint Zutritt UP | E66: HC-KEYUPE | F66: =Sicherheit!I12+G66 -> 0 | H66: 513
B67: Fingerprint Zutritt UP RFID | E67: HC-KEYUPER | F67: =Sicherheit!J12+G67 -> 0 | H67: 678
B68: Fingerprint Zutritt UP f. Sprechanlagenintegration | E68: HC-KEYUPI | F68: =Sicherheit!M12+G68 -> 0 | H68: 492
B69: Fingerprint Zutritt UP RFID f. Sprechanlagenintegration | E69: HC-KEYUPIR | F69: =Sicherheit!N12+G69 -> 0 | H69: 654
B70: Fingerprint Zutritt Integra | E70: HC-KEYIN | F70: =Sicherheit!O12+G70 -> 0 | H70: 381
B71: Fingerprint Zutritt Integra RFID | E71: HC-KEYINR | F71: =Sicherheit!P12+G71 -> 0 | H71: 558
B72: Switch 6 Port 10/100/1000T (4 x PoE) | E72: HC-SPOE42 | F72: =IF(Sicherheit!$G$8="Ja",IF(AND(SUM(Sicherheit!$C$12:$D$12)<=6,SUM(Sicherheit!$C$12:$D$12)>1),1,0),0)+G72 -> 0 | H72: 135
B73: Switch 9 Port 10/100/1000T (8 x PoE) | E73: HC-SPOE81 | F73: =IF(Sicherheit!$G$8="Ja",IF(SUM(Sicherheit!$C$12:$D$12)>6,1,0),0)+G73 -> 0 | H73: 245
B74: PoE Injector 1 Port | E74: HC-IPOE1 | F74: =IF(Sicherheit!$G$8="Ja",IF(SUM(Sicherheit!$C$12:$D$12)=1,1,0),0)+G74 -> 0 | H74: 54
B75: Schlotter Funk Erweiterung (15 Antriebe) | E75: HC-BRC15 | F75: =G75 -> 0 | H75: 348
B76: Zubehör
B77: Universaldimmer 400W | E77: HC-DIM400 | F77: =ROUNDUP(Beleuchtung!H13,0)+G77 -> 0 | H77: 63 | I77: =IF(F77>0,H77*F77,"") -> 
B78: Dekorblende reinweiß RAL9010 (Kunststoff) für alle HC-KEYUP-Modelle | E78: HC-KEYZ01 | F78: =G78 -> 0 | H78: 7.5
B79: Dekorblende aluminiumfarbig RAL9006 (Kunststoff) für alle HC-KEYUPModelle | E79: HC-KEYZ02 | F79: 0 | H79: 7.5
B80: Dekorblende anthrazitfarbig (Kunststoff) für alle HC-KEYUP-Modelle | E80: HC-KEYZ03 | F80: 0 | H80: 7.5
B81: Dekorblende Edelstahl für alle HC-KEYUP-Modelle | E81: HC-KEYZ04 | F81: 0 | H81: 54
B82: Sprechanlagen Einbaumodul, passend zu Sprechanlage HC-SIPB10-00 | E82: HC-KEYZ05 | F82: 0 | H82: 111
B83: Wetterschutz für alle HC-KEYAP-Modelle | E83: HC-KEYZ06 | F83: 0 | H83: 63
B84: RFID-Schlüsselanhänger | E84: HC-KEYZ07 | F84: =IF(SUM(F65+F67+F69+F71)>0,2,0)+G84 -> 0 | H84: 8.4
B85: RFID-Zutrittskarte | E85: HC-KEYZ08 | F85: =G85 -> 0 | H85: 7.5
B86: Dekorblende Edelstahl für HC-KEYIN-00 | E86: HC-KEYZ09 | F86: =F70+G86 -> 0 | H86: 9.6
B87: Dekorblende Edelstahl für HC-KEYINR-00 | E87: HC-KEYZ10 | F87: =F71+G87 -> 0 | H87: 12.6
B88: Aufputzgehäuse für Sprechanlage HC-SiPB10-00 | E88: HC-SIPZ01 | F88: =G88 -> 0 | H88: 66
B89: Aufputzrahmen für Sprechanlage HC-SiPB10-00 | E89: HC-SIPZ02 | F89: 0 | H89: 78
B90: Unterputzgehäuse 1fach für Sprechanlage HC-SiPB10-00 | E90: HC-SIPZ03 | F90: =F54+G90 -> 0 | H90: 25.5
B91: Unterputzrahmen 1fach für Sprechanlage HC-SiPB10-00 | E91: HC-SIPZ04 | F91: =F54+G91 -> 0 | H91: 78
B92: Unterputzrahmen 2fach für Sprechanlage HC-SiPB10-00 | E92: HC-SIPZ05 | F92: 0 | H92: 105
B93: Unterputzgehäuse 2fach für Sprechanlage HC-SiPB10-00 | E93: HC-SIPZ06 | F93: 0 | H93: 33
B94: evon Smart Home; WLAN Inbetriebnahme Accesspoint | E94: HC-WIFIAP | F94: 0 | H94: 39
B95: Verbindungsstecker techCOM (Ersatzteil) | E95: HC-S2100 | F95: 0 | H95: 6.3
B96: Verkabelungsbrücken DC + (100 Anschlusspunkte) | E96: HC-CABP | F96: =1+G96 -> 1 | H96: 45 | I96: 45
B97: Verkabelungsbrücken DC - (100 Anschlusspunkte) | E97: HC-CABM | F97: =1+G97 -> 1 | H97: 45 | I97: 45
F98: Summe Zubehör | I98: =SUM(I53:I97) -> 90
B101: Artikel | E101: Art.Nr. | F101: Menge | H101: Preis | I101: Summe
B102: Zusatzpakete
B103: Frei konfigurierbare Szenen um Ihr Smart Home an Ihre Bedürfnisse anzupassen - einfach übers App | F103: unbegrenzt | H103: 0 | I103: 0
B104: App (iOS oder Android) | F104: unbegrenzt | H104: 0 | I104: 0
B105: Benachrichtigungen aufs Handy | F105: unbegrenzt | H105: 0 | I105: 0
B106: Laufende Software Updates mit Optimierungen, neuen Funktionen und neuen Anbindungen und Integrationen | F106: unbegrenzt | H106: 0 | I106: 0
B107: Fernzugriff (Sie entscheiden selbst ob und wann)* | F107: unbegrenzt | H107: 0 | I107: 0
B108: Automatisch generierbare Dokumentation | F108: unbegrenzt | H108: 0 | I108: 0
F109: Summe Zusatzpakete | I109: =SUM(I102:I108) -> 0
F110: Gesamtsumme | H110: =I49+I98+I109 -> 888
B113: *) derzeit Beta Version
B115: Preise gültig ab 1. April 2019. Nicht kartellierte unverbindlich empfohlenen Verkaufspreise inkl. der gesetzlich vorgeschriebenen MWSt. Es gelten unsere allgemeinen Vertrags- und Lieferbedingungen. Beachten Sie bitte bei Verwendung unserer Materialien die für den jeweiligen Einsatzbereich gültigen ÖNORMEN, Einbauvorschriften und Bauordnungen sowie unsere Werknormen und Verlegeanleitungen. Technische Änderungen vorbehalten. Alle Angaben ohne Gewähr. Detailierte technische Informationen erhalten Sie unter http://www.evon-smarthome.com

Sheet Ihr Schaltschrank
B2: ="Schaltschrankplanung " &Start!$C$19 -> Schaltschrankplanung
B3: ="für "&Start!$C$20 -> für
B5: Wir sehen Smart Home als Herausforderung, die zwei Aufgaben erfüllen muss: Smart Home muss Ihr Leben einfacher machen und Smart Home darf nicht aufdringlich sein. Beides erreichen wir durch die Kombination moderner, vielfach erprobter Hardware und unserer App, die es Ihnen ganz ohne Programmierung ermöglicht, Ihr Zuhause an Ihre Wünsche anzupassen.
F8: für evon Smart Home Komponenten
B9: Artikel | E9: Breite (TE) | F9: nötige Breite (TE) | G9: Reihen
B10: Schaltschrankplanung
B11: =Stammdaten!D4 -> Hauptverteiler | E11: 35 | F11: ='Berechnung TEs'!C3 -> 14.3 | G11: ='Berechnung TEs'!B3 -> 0.4085714286
B12: =Stammdaten!D5 -> Subverteiler 1 | E12: 35 | F12: ='Berechnung TEs'!C4 -> 0 | G12: ='Berechnung TEs'!B4 -> 0
B13: =Stammdaten!D6 -> Subverteiler 2 | E13: 35 | F13: ='Berechnung TEs'!C5 -> 0 | G13: ='Berechnung TEs'!B5 -> 0
B14: =Stammdaten!D7 -> Subverteiler 3 | E14: 35 | F14: ='Berechnung TEs'!C6 -> 0 | G14: ='Berechnung TEs'!B6 -> 0
B15: =Stammdaten!D8 -> Subverteiler 4 | E15: 35 | F15: ='Berechnung TEs'!C7 -> 0 | G15: ='Berechnung TEs'!B7 -> 0

Sheet Schaltschrank (hidden)
A2: Artikel | D2: Art.Nr. | E2: Menge | F2: Preis | G2: Summe
A3: Schaltkasten
A4: =ROUNDUP('Berechnungen Schaltschrankgröße'!B54,0)&" Reihen" ->  | E4: 1 | F4: 0 | G4: =F4*E4 -> 0
A5: Klemmen
A6: Reihenklemmen Lastteil - Phoenix PTI 2,5-PE/L/N | D6: 3213950 | E6: ='Berechungen Schaltschrankmateri'!C13 -> 6.9 | F6: 0 | G6: =F6*E6 -> 0
A7: Reihenklemmen Taster - Weidmüller PRV8 | D7: PRV 8 BL 35X7.5 RT/W | E7: ='Berechungen Schaltschrankmateri'!C14 -> 0 | F7: 0 | G7: =F7*E7 -> 0
A8: Reihenklemmen 24V - Weidmüller PPV8 | D8: PPV 8 GR 35X15 DGR | E8: ='Berechungen Schaltschrankmateri'!C15 -> 0 | G8: =F8*E8 -> 0
A9: Koppelrelais
A10: 230V auf 24V - Finder ? | D10: ? | E10: ='Berechungen Schaltschrankmateri'!B17 -> 0 | F10: 0 | G10: =F10*E10 -> 0
A11: 24V auf 230V - Finder ? | D11: ? | E11: ='Berechungen Schaltschrankmateri'!B18 -> 0 | F11: 0 | G11: =F11*E11 -> 0
A12: Leitungsschutzschalter
D13: ? | E13: ='Berechungen Schaltschrankmateri'!B20 -> 0 | F13: 0 | G13: =F13*E13 -> 0
D14: ? | E14: ='Berechungen Schaltschrankmateri'!B21 -> 0 | F14: 0 | G14: =F14*E14 -> 0
E15: ='Berechungen Schaltschrankmateri'!C19 -> 0 | G15: =F15*E15 -> 0
G16: 0

Sheet Zubehör (hidden)
A2: Artikel | D2: Art.Nr. | E2: Menge | F2: Preis | G2: Summe
A3: Taster
A4: Berker S1 - 4 fach Taster oder … | E4: =Taster!G34 -> 0 | F4: 0 | G4: =F4*E4 -> 0
A5: Rauchmelder
A6: z.B XY | E6: =Sicherheit!E12 -> 0 | F6: 0 | G6: =F6*E6 -> 0
E7: ='Berechungen Schaltschrankmateri'!C19 -> 0 | G7: =F7*E7 -> 0
G8: =F8*E8 -> 0

Sheet Sicherungskreise (hidden)
B1: Steckdosen | C1: Licht | D1: Beschattung | E1: Kraftsteckdosen | F1: Backofen | G1: Ceranfeld | H1: Geschirrspüler | I1: Elektroauto | J1: Heizung | K1: Heizung Steuerspannung
A2: Gesamt | B2: =MAX(B3:B38) -> 6 | C2: =MAX(C3:C38) -> 6 | D2: =MAX(D3:D38) -> 2 | E2: =MAX(E3:E38) -> 1 | F2: 1 | G2: 1 | H2: 1 | I2: 1 | J2: 1 | K2: 1
A3: =IF('Mein Zuhause'!B9<>"",'Mein Zuhause'!B9&" - "&'Mein Zuhause'!C9,"") ->  | B3: 1 | C3: 1 | D3: 1
A4: =IF('Mein Zuhause'!B10<>"",'Mein Zuhause'!B10&" - "&'Mein Zuhause'!C10,"") ->  | B4: 1 | C4: 1 | D4: 1
A5: =IF('Mein Zuhause'!B11<>"",'Mein Zuhause'!B11&" - "&'Mein Zuhause'!C11,"") ->  | B5: 1 | C5: 1 | D5: 1
A6: =IF('Mein Zuhause'!B12<>"",'Mein Zuhause'!B12&" - "&'Mein Zuhause'!C12,"") ->  | B6: 1 | C6: 1 | D6: 1
A7: =IF('Mein Zuhause'!B13<>"",'Mein Zuhause'!B13&" - "&'Mein Zuhause'!C13,"") ->  | B7: 1 | C7: 1 | D7: 1
A8: =IF('Mein Zuhause'!B14<>"",'Mein Zuhause'!B14&" - "&'Mein Zuhause'!C14,"") ->  | B8: 2 | C8: 2 | D8: 1
A9: =IF('Mein Zuhause'!B15<>"",'Mein Zuhause'!B15&" - "&'Mein Zuhause'!C15,"") ->  | B9: 2 | C9: 2 | D9: 1
A10: =IF('Mein Zuhause'!B16<>"",'Mein Zuhause'!B16&" - "&'Mein Zuhause'!C16,"") ->  | B10: 2 | C10: 2 | D10: 1
A11: =IF('Mein Zuhause'!B17<>"",'Mein Zuhause'!B17&" - "&'Mein Zuhause'!C17,"") ->  | B11: 2 | C11: 2 | D11: 1
A12: =IF('Mein Zuhause'!B18<>"",'Mein Zuhause'!B18&" - "&'Mein Zuhause'!C18,"") ->  | B12: 3 | C12: 3 | D12: 1
A13: =IF('Mein Zuhause'!B19<>"",'Mein Zuhause'!B19&" - "&'Mein Zuhause'!C19,"") ->  | B13: 3 | C13: 3 | D13: 1 | E13: 1 | I13: 1
A14: =IF('Mein Zuhause'!B20<>"",'Mein Zuhause'!B20&" - "&'Mein Zuhause'!C20,"") ->  | B14: 4 | C14: 4
A15: =IF('Mein Zuhause'!B21<>"",'Mein Zuhause'!B21&" - "&'Mein Zuhause'!C21,"") ->  | B15: 4 | C15: 4
A16: =IF('Mein Zuhause'!B22<>"",'Mein Zuhause'!B22&" - "&'Mein Zuhause'!C22,"") ->  | B16: 5 | C16: 5 | D16: 2
A17: =IF('Mein Zuhause'!B23<>"",'Mein Zuhause'!B23&" - "&'Mein Zuhause'!C23,"") ->  | B17: 5 | C17: 5 | D17: 2 | F17: 1 | G17: 1 | H17: 1
A18: =IF('Mein Zuhause'!B24<>"",'Mein Zuhause'!B24&" - "&'Mein Zuhause'!C24,"") ->  | B18: 5 | C18: 5 | D18: 2
A19: =IF('Mein Zuhause'!B25<>"",'Mein Zuhause'!B25&" - "&'Mein Zuhause'!C25,"") ->  | B19: 5 | C19: 5 | D19: 2
A20: =IF('Mein Zuhause'!B26<>"",'Mein Zuhause'!B26&" - "&'Mein Zuhause'!C26,"") ->  | B20: 6 | C20: 6 | D20: 2
A21: =IF('Mein Zuhause'!B27<>"",'Mein Zuhause'!B27&" - "&'Mein Zuhause'!C27,"") ->  | B21: 6 | C21: 6 | D21: 2
A22: =IF('Mein Zuhause'!B28<>"",'Mein Zuhause'!B28&" - "&'Mein Zuhause'!C28,"") ->  | B22: 6 | C22: 6 | D22: 2 | J22: 1 | K22: 1
A23: =IF('Mein Zuhause'!B29<>"",'Mein Zuhause'!B29&" - "&'Mein Zuhause'!C29,"") ->  | B23: 6 | C23: 6 | D23: 2
A24: =IF('Mein Zuhause'!B30<>"",'Mein Zuhause'!B30&" - "&'Mein Zuhause'!C30,"") ->  | B24: 4 | C24: 4
A25: =IF('Mein Zuhause'!B31<>"",'Mein Zuhause'!B31&" - "&'Mein Zuhause'!C31,"") -> 
A26: =IF('Mein Zuhause'!B32<>"",'Mein Zuhause'!B32&" - "&'Mein Zuhause'!C32,"") -> 
A27: =IF('Mein Zuhause'!B33<>"",'Mein Zuhause'!B33&" - "&'Mein Zuhause'!C33,"") -> 
A28: =IF('Mein Zuhause'!B34<>"",'Mein Zuhause'!B34&" - "&'Mein Zuhause'!C34,"") -> 
A29: =IF('Mein Zuhause'!B35<>"",'Mein Zuhause'!B35&" - "&'Mein Zuhause'!C35,"") -> 
A30: =IF('Mein Zuhause'!B36<>"",'Mein Zuhause'!B36&" - "&'Mein Zuhause'!C36,"") -> 
A31: =IF('Mein Zuhause'!B37<>"",'Mein Zuhause'!B37&" - "&'Mein Zuhause'!C37,"") -> 
A32: =IF('Mein Zuhause'!B38<>"",'Mein Zuhause'!B38&" - "&'Mein Zuhause'!C38,"") -> 
A33: =IF('Mein Zuhause'!B39<>"",'Mein Zuhause'!B39&" - "&'Mein Zuhause'!C39,"") -> 
A34: =IF('Mein Zuhause'!B40<>"",'Mein Zuhause'!B40&" - "&'Mein Zuhause'!C40,"") -> 
A35: =IF('Mein Zuhause'!B41<>"",'Mein Zuhause'!B41&" - "&'Mein Zuhause'!C41,"") -> 
A36: =IF('Mein Zuhause'!B42<>"",'Mein Zuhause'!B42&" - "&'Mein Zuhause'!C42,"") -> 

Sheet Berechungen Schaltschrankmateri (hidden)
A1: TE = mm | B1: 18
A2: Reserve Klemmen | B2: 0.15
D4: TE
A5: LS C16/3N | B5: =Sicherungskreise!J2+Sicherungskreise!E2 -> 2 | D5: 4
A6: LS C16/N | B6: =Sicherungskreise!F2+Sicherungskreise!G2+Sicherungskreise!H2+Sicherungskreise!K2 -> 4 | D6: 2
A7: LS C13/N | B7: =Sicherungskreise!B2 -> 6 | D7: 2
A8: LS B13/N | B8: =Sicherungskreise!D2+Sicherungskreise!C2+1 -> 9 | D8: 2 | E8: inkl eigene 24 V
A9: LS mit FI
A10: FI
A11: LS C25/3N | B11: =Sicherungskreise!I2 -> 1
A13: Reihenklemmen Last | B13: =SUM(Beleuchtung!C13:D13)+(SUM('Beschatttung und Fenster'!C13:G13)+SUM('Beschatttung und Fenster'!C13:G13)/2)+Sicherungskreise!B2+Komfort!C10+Komfort!E10+Komfort!D10 -> 6 | C13: =B13+$B$2*B13 -> 6.9 | D13: =I13/$B$1 -> 0.2888888889 | E13: (230V - Licht, Steckdosen etc.) | H13: Breite (mm) | I13: 5.2 | J13: Phönix | K13: Installationsschutzleiterklemme - PTI 2,5-PE/L/N - 3213950
A14: Reihenklemmen Taster | B14: =ROUNDUP(Taster!G34*5/8+Sicherheit!E12/8,0) -> 0 | C14: =B14+$B$2*B14 -> 0 | D14: =I14/$B$1 -> 0.5111111111 | H14: Breite (mm) | I14: 9.2 | J14: Weidmüller PRV8 | L14: PRV 8 BL 35X7.5 RT/W
A15: Reihenklemmen 24V | B15: =ROUNDUP(Taster!E3/4/15,0) -> 0 | C15: =B15*2 -> 0 | D15: 0.5111111111 | E15: reserve 100% | H15: Breite (mm) | I15: 9.2 | J15: Weidmüller PPV8 | L15: PPV 8 GR 35X15 DGR
A17: Koppelrelais 230/24V | B17: =Beleuchtung!K13 -> 0 | D17: 0.8611111111 | H17: Breite (mm) | I17: 15.5 | J17: finder
A18: Koppelrelais 24/230V | B18: =SUM(Komfort!E10+Komfort!D10+Komfort!C10) -> 0 | D18: 0.3444444444 | H18: Breite (mm) | I18: 6.2 | J18: finder

Sheet Berechnungen Schaltschrankgröße (hidden)
A1: Schaltschrankbreite (TE) | B1: ='Ihr evon Smart Home'!#REF! -> 
A5: evon Home Module
A6: Platzbedarf evon home module (TE) | B6: ='Ihr evon Smart Home'!#REF! -> 
A7: Reihen ohne Umsetzer | B7: =ROUNDUP('Ihr evon Smart Home'!#REF!/35,0) -> 
A8: nötige Anzahl Umsetzer | B8: =(B7-1)*2 -> 
A9: Platzbedarf Umsetzer | B9: =B8*'Ihr evon Smart Home'!#REF! -> 
A10: Platzbedarf mit Umsetzer | B10: =B6+B9 -> 
A11: Reihen | B11: =ROUNDUP(B10/B1,1) -> 
A12: Tatsächliche Anzahl Umsetzer | B12: =(ROUNDUP(B11,0)-1)*2 -> 
A13: Tatsächlicher Platzbedarf (TE) | B13: =B6+B12*'Ihr evon Smart Home'!#REF! -> 
A16: Klemmen
A17: Reihenklemmen 230V
A18: anzahl mit Reserve | B18: ='Berechungen Schaltschrankmateri'!C13 -> 6.9 | F18: Preis | G18: 2.3 | H18: stk | I18: Schäke Preis
A19: TE | B19: =B18*'Berechungen Schaltschrankmateri'!D13 -> 1.993333333 | G19: =B19*G18 -> 4.584666667
A20: Platzbedarf Reihen | B20: =B19/$B$1 -> 
A22: Reihenklemmen Taster | F22: Preis | G22: 11.36 | H22: stk | I22: Schäke Preis
A23: anzahl | B23: ='Berechungen Schaltschrankmateri'!C14 -> 0 | G23: =B23*G22 -> 0
A24: TE | B24: =B23*'Berechungen Schaltschrankmateri'!D14 -> 0
A25: Platzbedarf Reihen | B25: =B24/$B$1 -> 
A27: Reihenklemmen 24V Verteilung | F27: Preis | G27: 12.5 | H27: stk | I27: Schäke Preis
A28: anzahl | B28: ='Berechungen Schaltschrankmateri'!C15 -> 0 | G28: =B28*G27 -> 0
A29: TE | B29: =B28*'Berechungen Schaltschrankmateri'!D15 -> 0
A30: Platzbedarf Reihen | B30: =B29/$B$1 -> 
A32: Reihen | B32: =ROUNDUP(B30+B25+B20,1) ->  | C32: Reihen
A33: Preis Klemmen Gesamt netto EK | B33: =G19+G23+G28 -> 4.584666667
A36: Leistungeteil
A37: TE | B37: ='Berechungen Schaltschrankmateri'!B5*'Berechungen Schaltschrankmateri'!D5+'Berechungen Schaltschrankmateri'!B6*'Berechungen Schaltschrankmateri'!D6+'Berechungen Schaltschrankmateri'!B7*'Berechungen Schaltschrankmateri'!D7+'Berechungen Schaltschrankmateri'!B8*'Berechungen Schaltschrankmateri'!D8 -> 46
A38: Platzbedarf Reihen | B38: =B37/B1 -> 
A40: Koppelrelais
A41: 230/24V
A42: Anzahl | B42: ='Berechungen Schaltschrankmateri'!B17 -> 0
A43: reserve
A44: TE | B44: =B42*'Berechungen Schaltschrankmateri'!D17 -> 0
A45: Platzbedarf | B45: =B44/B1 -> 
A46: 24V/230V
A47: Anzahl | B47: ='Berechungen Schaltschrankmateri'!B18 -> 0
A48: reserve
A49: TE | B49: =B47*'Berechungen Schaltschrankmateri'!D18 -> 0
A50: Platzbedarf | B50: =B49/B6 -> 
A52: Reihen | B52: =B50+B45 -> 
A54: Reihen Gesamt | B54: =B11+B32+B52+B38 ->  | C54: Max 7

Sheet Berechnung TEs (hidden)
A1: Teilungsheinheiten
B2: Summe gesamt | C2: TEs gesamt | D2: Anzahl Busverlängerungen | E2: Reihen ohne verlängerung | F2: Busabschlussmodul | G2: Busabschlussmodule | H2: TEs ohne Busverlängerung | I2: CPU | J2: Netzteil | K2: Soundmodule | L2: HC-TA200 | M2: HC-S2200 | N2: HC-S2300 | O2: HC-TE100 | P2: Beleuchtung | Q2: Beschattung | R2: Raumregelung | S2: Digitale/Analoge
A3: =Stammdaten!D4 -> Hauptverteiler | B3: =IF(H3>0,C3/'Ihr Schaltschrank'!E11,0) -> 0.4085714286 | C3: =IF(H3>0,H3+F3+D3*Stammdaten!$H$33,0) -> 14.3 | D3: =IF(H3>1,ROUNDDOWN(E3,0)*2+IF(B13>0,1,0),0) -> 0 | E3: =IF(H3>0,H3+F3*G3,0)/'Ihr Schaltschrank'!E11 -> 0.4085714286 | F3: =Stammdaten!$H$34 -> 1.3 | G3: =IF(B13>0,0,1) -> 1 | H3: =SUM(I3:AQ3) -> 13 | I3: ='Ihr evon Smart Home'!F10*Stammdaten!H4+'Ihr evon Smart Home'!F11*Stammdaten!H5 -> 7.8 | J3: ='Ihr evon Smart Home'!F46*Stammdaten!H32 -> 5.2 | K3: ='Ihr evon Smart Home'!F39*Stammdaten!H26 -> 0 | L3: ='Ihr evon Smart Home'!F40*Stammdaten!H27 -> 0 | M3: ='Ihr evon Smart Home'!F41*Stammdaten!H28 -> 0 | N3: ='Ihr evon Smart Home'!F42*Stammdaten!H29 -> 0 | O3: ='Ihr evon Smart Home'!F44*Stammdaten!H31 -> 0 | P3: ='Berechnung Beleuchtung'!Q8 -> 0 | Q3: ='Berechnung Beschattung'!O8 -> 0 | R3: ='Berechnung Raumreg'!H8 -> 0 | S3: ='Berechnung AnalogDigitalmodule'!M7+'Berechnung AnalogDigitalmodule'!M24+'Berechnung AnalogDigitalmodule'!M38 -> 0
A4: =Stammdaten!D5 -> Subverteiler 1 | B4: =IF(H4>0,C4/'Ihr Schaltschrank'!E12,0) -> 0 | C4: =IF(H4>0,H4+F4+D4*Stammdaten!$H$33,0) -> 0 | D4: =IF(H4>1,ROUNDDOWN(E4,0)*2+1,0) -> 0 | E4: =IF(H4>0,H4+F4*G4,0)/'Ihr Schaltschrank'!E12 -> 0 | F4: =Stammdaten!$H$34 -> 1.3 | G4: 1 | H4: =SUM(I4:AQ4) -> 0 | P4: ='Berechnung Beleuchtung'!Q9 -> 0 | Q4: ='Berechnung Beschattung'!O9 -> 0 | R4: ='Berechnung Raumreg'!H9 -> 0 | S4: ='Berechnung AnalogDigitalmodule'!M8+'Berechnung AnalogDigitalmodule'!M25+'Berechnung AnalogDigitalmodule'!M39 -> 0
A5: =Stammdaten!D6 -> Subverteiler 2 | B5: =IF(H5>0,C5/'Ihr Schaltschrank'!E13,0) -> 0 | C5: =IF(H5>0,H5+F5+D5*Stammdaten!$H$33,0) -> 0 | D5: =IF(H5>1,ROUNDDOWN(E5,0)*2+1+IF(G5>0,0,1),0) -> 0 | E5: =IF(H5>0,H5+F5*G5,0)/'Ihr Schaltschrank'!E13 -> 0 | F5: =Stammdaten!$H$34 -> 1.3 | G5: =IF(H6>0,0,IF(H5>0,1,0)) -> 0 | H5: 0 | P5: ='Berechnung Beleuchtung'!Q10 -> 0 | Q5: ='Berechnung Beschattung'!O10 -> 0 | R5: ='Berechnung Raumreg'!H10 -> 0 | S5: ='Berechnung AnalogDigitalmodule'!M9+'Berechnung AnalogDigitalmodule'!M26+'Berechnung AnalogDigitalmodule'!M40 -> 0
A6: =Stammdaten!D7 -> Subverteiler 3 | B6: =IF(H6>0,C6/'Ihr Schaltschrank'!E14,0) -> 0 | C6: =IF(H6>0,H6+F6+D6*Stammdaten!$H$33,0) -> 0 | D6: =IF(H6>1,ROUNDDOWN(E6,0)*2+1+IF(G6>0,0,1),0) -> 0 | E6: =IF(H6>0,H6+F6*G6,0)/'Ihr Schaltschrank'!E14 -> 0 | F6: =Stammdaten!$H$34 -> 1.3 | G6: =IF(H7=0,IF(H6>0,1,0),0) -> 0 | H6: 0 | P6: ='Berechnung Beleuchtung'!Q11 -> 0 | Q6: ='Berechnung Beschattung'!O11 -> 0 | R6: ='Berechnung Raumreg'!H11 -> 0 | S6: ='Berechnung AnalogDigitalmodule'!M10+'Berechnung AnalogDigitalmodule'!M27+'Berechnung AnalogDigitalmodule'!M41 -> 0
A7: =Stammdaten!D8 -> Subverteiler 4 | B7: =IF(H7>0,C7/'Ihr Schaltschrank'!E15,0) -> 0 | C7: =IF(H7>0,H7+F7+D7*Stammdaten!$H$33,0) -> 0 | D7: =IF(H7>1,ROUNDDOWN(E7,0)*2+1+IF(G7>0,0,1),0) -> 0 | E7: =IF(H7>0,H7+F7*G7,0)/'Ihr Schaltschrank'!E15 -> 0 | F7: =Stammdaten!$H$34 -> 1.3 | G7: =IF(H7>0,1,0) -> 0 | H7: 0 | P7: ='Berechnung Beleuchtung'!Q12 -> 0 | Q7: ='Berechnung Beschattung'!O12 -> 0 | R7: ='Berechnung Raumreg'!H12 -> 0 | S7: ='Berechnung AnalogDigitalmodule'!M11+'Berechnung AnalogDigitalmodule'!M28+'Berechnung AnalogDigitalmodule'!M42 -> 0
A12: Subverteiler auf Smart Com | B12: =IF(H4>0,1,0) -> 0
A13: Subverteiler Hauptlinie verlängert | B13: =COUNTIF(H5:H7,">0") -> 0

Sheet Taster (hidden)
B1: Tastpunkte
B2: Licht | C2: Beschattung | D2: Szenen | E2: Gesamt | G2: Anzahl 4-fach Taster
E3: =SUM(E4:E45) -> 0
A4: =Start!#REF!&" - "&Start!#REF! ->  | B4: =SUM(Beleuchtung!C14:D14) -> 0 | C4: =SUM('Beschatttung und Fenster'!C14:G14)*2 -> 0 | D4: =Komfort!G11 -> 0 | E4: =SUM(B4:D4) -> 0 | G4: =ROUNDUP(E4/4,0) -> 0
A5: =Start!#REF!&" - "&Start!#REF! ->  | B5: =SUM(Beleuchtung!C15:D15) -> 0 | C5: =SUM('Beschatttung und Fenster'!C15:G15)*2 -> 0 | D5: =Komfort!G12 -> 0 | E5: =SUM(B5:D5) -> 0 | G5: =ROUNDUP(E5/4,0) -> 0
A6: =Start!#REF!&" - "&Start!#REF! ->  | B6: =SUM(Beleuchtung!C16:D16) -> 0 | C6: =SUM('Beschatttung und Fenster'!C16:G16)*2 -> 0 | D6: =Komfort!G13 -> 0 | E6: 0 | G6: 0
A7: =Start!#REF!&" - "&Start!#REF! ->  | B7: =SUM(Beleuchtung!C17:D17) -> 0 | C7: =SUM('Beschatttung und Fenster'!C17:G17)*2 -> 0 | D7: =Komfort!G14 -> 0 | E7: 0 | G7: 0
A8: =Start!#REF!&" - "&Start!#REF! ->  | B8: =SUM(Beleuchtung!C18:D18) -> 0 | C8: =SUM('Beschatttung und Fenster'!C18:G18)*2 -> 0 | D8: =Komfort!G15 -> 0 | E8: 0 | G8: 0
A9: =Start!#REF!&" - "&Start!#REF! ->  | B9: =SUM(Beleuchtung!C19:D19) -> 0 | C9: =SUM('Beschatttung und Fenster'!C19:G19)*2 -> 0 | D9: =Komfort!G16 -> 0 | E9: 0 | G9: 0
A10: =Start!#REF!&" - "&Start!#REF! ->  | B10: =SUM(Beleuchtung!C20:D20) -> 0 | C10: =SUM('Beschatttung und Fenster'!C20:G20)*2 -> 0 | D10: =Komfort!G17 -> 0 | E10: 0 | G10: 0
A11: =Start!#REF!&" - "&Start!#REF! ->  | B11: =SUM(Beleuchtung!C21:D21) -> 0 | C11: =SUM('Beschatttung und Fenster'!C21:G21)*2 -> 0 | D11: =Komfort!G18 -> 0 | E11: 0 | G11: 0
A12: =Start!#REF!&" - "&Start!#REF! ->  | B12: =SUM(Beleuchtung!C22:D22) -> 0 | C12: =SUM('Beschatttung und Fenster'!C22:G22)*2 -> 0 | D12: =Komfort!G19 -> 0 | E12: 0 | G12: 0
A13: =Start!#REF!&" - "&Start!#REF! ->  | B13: =SUM(Beleuchtung!C23:D23) -> 0 | C13: =SUM('Beschatttung und Fenster'!C23:G23)*2 -> 0 | D13: =Komfort!G20 -> 0 | E13: 0 | G13: 0
A14: =Start!#REF!&" - "&Start!#REF! ->  | B14: =SUM(Beleuchtung!C24:D24) -> 0 | C14: =SUM('Beschatttung und Fenster'!C24:G24)*2 -> 0 | D14: =Komfort!G21 -> 0 | E14: 0 | G14: 0
A15: =Start!#REF!&" - "&Start!#REF! ->  | B15: =SUM(Beleuchtung!C25:D25) -> 0 | C15: =SUM('Beschatttung und Fenster'!C25:G25)*2 -> 0 | D15: =Komfort!G22 -> 0 | E15: 0 | G15: 0
A16: =Start!#REF!&" - "&Start!#REF! ->  | B16: =SUM(Beleuchtung!C26:D26) -> 0 | C16: =SUM('Beschatttung und Fenster'!C26:G26)*2 -> 0 | D16: =Komfort!G23 -> 0 | E16: 0 | G16: 0
A17: =Start!#REF!&" - "&Start!#REF! ->  | B17: =SUM(Beleuchtung!C27:D27) -> 0 | C17: =SUM('Beschatttung und Fenster'!C27:G27)*2 -> 0 | D17: =Komfort!G24 -> 0 | E17: 0 | G17: 0
A18: =Start!#REF!&" - "&Start!#REF! ->  | B18: =SUM(Beleuchtung!C28:D28) -> 0 | C18: =SUM('Beschatttung und Fenster'!C28:G28)*2 -> 0 | D18: =Komfort!G25 -> 0 | E18: 0 | G18: 0
A19: =Start!#REF!&" - "&Start!#REF! ->  | B19: =SUM(Beleuchtung!C29:D29) -> 0 | C19: =SUM('Beschatttung und Fenster'!C29:G29)*2 -> 0 | D19: =Komfort!G26 -> 0 | E19: 0 | G19: 0
A20: =Start!#REF!&" - "&Start!#REF! ->  | B20: =SUM(Beleuchtung!C30:D30) -> 0 | C20: =SUM('Beschatttung und Fenster'!C30:G30)*2 -> 0 | D20: =Komfort!G27 -> 0 | E20: 0 | G20: 0
A21: =Start!#REF!&" - "&Start!#REF! ->  | B21: =SUM(Beleuchtung!C31:D31) -> 0 | C21: =SUM('Beschatttung und Fenster'!C31:G31)*2 -> 0 | D21: =Komfort!G28 -> 0 | E21: 0 | G21: 0
A22: =Start!#REF!&" - "&Start!#REF! ->  | B22: =SUM(Beleuchtung!C32:D32) -> 0 | C22: =SUM('Beschatttung und Fenster'!C32:G32)*2 -> 0 | D22: =Komfort!G29 -> 0 | E22: 0 | G22: 0
A23: =Start!#REF!&" - "&Start!#REF! ->  | B23: =SUM(Beleuchtung!C33:D33) -> 0 | C23: =SUM('Beschatttung und Fenster'!C33:G33)*2 -> 0 | D23: =Komfort!G30 -> 0 | E23: 0 | G23: 0
A24: =Start!#REF!&" - "&Start!#REF! ->  | B24: =SUM(Beleuchtung!C34:D34) -> 0 | C24: =SUM('Beschatttung und Fenster'!C34:G34)*2 -> 0 | D24: =Komfort!G31 -> 0 | E24: 0 | G24: 0
A25: =Start!#REF!&" - "&Start!#REF! ->  | B25: =SUM(Beleuchtung!C35:D35) -> 0 | C25: =SUM('Beschatttung und Fenster'!C35:G35)*2 -> 0 | D25: =Komfort!G32 -> 0 | E25: 0 | G25: 0
A26: =Start!#REF!&" - "&Start!#REF! ->  | B26: =SUM(Beleuchtung!C36:D36) -> 0 | C26: =SUM('Beschatttung und Fenster'!C36:G36)*2 -> 0 | D26: =Komfort!G33 -> 0 | E26: 0 | G26: 0
A27: =Start!#REF!&" - "&Start!#REF! ->  | B27: =SUM(Beleuchtung!C37:D37) -> 0 | C27: =SUM('Beschatttung und Fenster'!C37:G37)*2 -> 0 | D27: =Komfort!G34 -> 0 | E27: 0 | G27: 0
A28: =Start!#REF!&" - "&Start!#REF! ->  | B28: =SUM(Beleuchtung!C38:D38) -> 0 | C28: =SUM('Beschatttung und Fenster'!C38:G38)*2 -> 0 | D28: =Komfort!G35 -> 0 | E28: 0 | G28: 0
A29: =Start!#REF!&" - "&Start!#REF! ->  | B29: =SUM(Beleuchtung!C39:D39) -> 0 | C29: =SUM('Beschatttung und Fenster'!C39:G39)*2 -> 0 | D29: =Komfort!G36 -> 0 | E29: 0 | G29: 0
A30: =Start!#REF!&" - "&Start!#REF! ->  | B30: =SUM(Beleuchtung!C40:D40) -> 0 | C30: =SUM('Beschatttung und Fenster'!C40:G40)*2 -> 0 | D30: =Komfort!G37 -> 0 | E30: 0 | G30: 0
A31: =Start!B9&" - "&Start!C9 -> - | B31: =SUM(Beleuchtung!C41:D41) -> 0 | C31: =SUM('Beschatttung und Fenster'!C41:G41)*2 -> 0 | D31: =Komfort!G38 -> 0 | E31: 0 | G31: 0
A32: =Start!#REF!&" - "&Start!C24 -> 
A33: =Start!#REF!&" - "&Start!#REF! -> 
A34: =Start!#REF!&" - "&Start!#REF! ->  | G34: =SUM(G4:G31) -> 0
